{"text_format":"1","workbook":"xlsx","n_sheets":13,"sheets":["Introduction","Privacy Notice – GDPR","NamedRanges","Rule Set Helper","LkupLists","Application","Applicants","Relevant Convictions","Plant Details","Common Windshields","ReSP","Resp 1","DataList"],"not_rendered":{"charts":0,"images":4,"macros":1,"external_links":0,"defined_names":241,"comments":9,"pivot_tables":0},"unopened":[],"bounds":{"document_bytes":16777216,"sheet_cells":100000,"rows_first":2000,"rows_last":500,"rows_between":2000,"halvings":0,"cell_chars":16384,"cell_head_chars":4096},"cells_cut":0,"cells_raw":0,"read":"whole","date_system":"1900"}

{"sheet":"Introduction","index":0,"n_rows":105,"n_cols":8,"rows_kept":105,"cut":false,"hidden":false,"merged":[[90,1,90,7],[91,1,91,7],[92,1,92,7],[94,1,94,7],[95,1,95,7],[84,1,84,7],[85,1,85,7],[86,1,86,7],[87,1,87,7],[89,1,89,7],[102,4,102,7],[97,1,97,7],[98,1,98,7],[99,1,99,7],[100,1,100,7],[96,1,96,7],[83,1,83,7],[56,4,56,5],[57,4,57,5],[58,4,58,5],[62,4,62,5],[68,1,68,7],[63,2,65,2],[63,3,65,3],[67,1,67,7],[78,1,80,1],[78,4,78,5],[79,4,79,5],[80,2,80,3],[72,7,80,7],[53,1,58,1],[80,4,80,5],[72,6,80,6],[8,1,8,7],[25,2,25,7],[26,2,26,7],[27,2,27,7],[28,2,28,7],[30,2,30,7],[23,2,23,7],[24,2,24,7],[32,2,32,7],[22,2,22,7],[29,2,29,7],[48,1,48,7],[10,1,10,7],[9,1,9,7],[20,1,20,7],[34,1,34,7],[41,6,46,6],[41,7,46,7],[40,4,40,5],[41,4,41,5],[42,4,42,5],[43,4,43,5],[45,4,45,5],[46,4,46,5],[31,2,31,7],[0,1,0,6],[2,1,2,6],[72,1,74,1],[71,4,71,5],[72,4,72,5],[73,4,73,5],[74,4,74,5],[74,2,74,3],[3,1,3,7],[53,4,53,5],[54,4,54,5],[55,4,55,5],[53,6,58,6],[41,1,46,1],[6,1,6,7],[36,1,36,7],[4,1,4,7],[77,4,77,5],[64,4,64,5],[63,4,63,5],[65,4,65,5],[63,6,65,6],[15,1,15,7],[16,1,16,7],[17,1,17,7],[53,7,58,7],[63,7,65,7],[52,4,52,5],[12,1,12,7],[44,4,44,5],[14,1,14,7],[21,2,21,7],[50,1,50,7],[60,1,60,7],[75,1,77,1],[75,4,75,5],[76,4,76,5],[77,2,77,3]]}
[null,"Application for an Environmental Permit"]
[null,"Low Risk Medium Combustion Plant & Low Risk Specified Generator - Standard Rules Permit",null,null,null,null,null,"Version 5.3"]
[]
[null,"Only use this permit application form to apply for a Standard Rules Permit, or to add plant to an existing standard rules permit. For a Bespoke Permit please follow the links that you will find here:"]
[null,"Medium Combustion Plant Information Page"]
[]
[null,"PLEASE 'ENABLE CONTENT' (MACROS) ON THIS DOCUMENT if prompted above. This will make the completion of this application form easier and you will also be able to verify some of the important information that you provide"]
[]
[null,"\nApplying for a low risk Medium Combustion Plant or Specified Generator standard facility, Standard Rules permit:\n\n1. Please read this Introduction page before completing the application form. You may find it useful to print or save it for reference when completing your application.\n\n2: Before you start completing this form, please save this file to a known location with a known file name. If you have opened it directly from the internet, it will be stored in a temporary folder, which you may find hard to relocate later, and which may also be inadvertently overwritten if you open the same internet link again. \n\n3: As highlighted above, please 'Enable Content/Enable Macros' on this application form if you are able to. This will enable full functionality of this form. \nIf you cannot 'Enable Macros', you may still use this form. Manually navigate through the form using the instructions provided to check the operational parameters of your plant meet the Standard Rules and calculate the correct fee.\n\n4. To help choose the correct standard rules set, please select the ‘Rule set helper’ tab. Once completed, this will confirm whether a standard rules permit or bespoke permit is required.\n\n5. If a standard rules set meets your plant requirements, then please complete all of the following tabs:-\n• Application - Complete all appropriate blue fields. These blue fields will turn green once completed.\n• Applicants - Please list all company directors, names of individuals or executive Officers as appropriate.\n• Relevant Convictions – Complete if applicable.  \n• Plant Details - Please list all plant that you wish to permit. If this application is to add more plant to an existing standard rules permit only send us details of the plant you want to add.\n• A Windshield tab will also appear for multiple new plant and where SR2018 No7 and SR2022 No 9 has been selected. Please list any new combustion plant which share a common windshield.\n\n6:  When you have completed this application form please send it by e-mail (with proof of payment if made by bank transfer) to"]
[null,"MCPD-Application@environment-agency.gov.uk"]
[null,"For information on payments options see the How to Pay section below."]
[]
[null,"Guidance on 'Operator' for Registered Companies\nThe operator should be a company that can meet the following:\na. Which company has direct day-to-day control over the running of the site?  \nb. Which company will ensure compliance with any relevant permit conditions? \nc. Which company will have the power to employ and dismiss the key staff who manage the site? \nd. Which company will make investment decisions regarding to the site? \ne. Which company will ensure that emergency procedures are followed should a serious incident occur? \n"]
[]
[null,"Choosing the right Standard Rules set\n\nWe have produced sets of Standard Rules for:\n- Low Risk stationary Tranche B Specified Generator\n- Low Risk New and Existing Medium Combustion Plant \n- Low Risk mobile Tranche B Specified Generator  \nWe have also made an assessment of the risk from each of them which you can find at: "]
[null,"https://www.gov.uk/government/collections/standard-rules-environmental-permitting  "]
[null,"Use the rules and generic risk assessment to make sure your proposals meet the rules and fit within the assessment. If you apply for a Standard Rules permit, the conditions cannot be appealed against or varied. You can choose to apply for a bespoke permit if you think your activity will not meet any of the Standard Rules permits which can be found at:-   "]
[null,"https://www.gov.uk/government/collections/environmental-permit-application-forms-for-a-new-bespoke-permit"]
[null,"Please note there are no Standard Rules for a mobile plant which authorises deployment within an Air Quality Management Area. "]
[]
[null,"Medium Combustion Plant and Specified Generator - Standard Rule Sets"]
[]
[null,"Standard Rule Reference","Standard Rule Description"]
[null,"SR2018 No 1  ","Specified Generator, Tranche B low risk, base load operation between 0 to less than or equal to 5 MWth, that may include New Medium Combustion Plant greater than or equal to 1MWth and less than or equal to 5 MWth. Not in Air Quality Management Areas, background NO2 no greater than 31 μg/m3"]
[null,"SR2018 No 2","Specified Generator, Tranche B low risk, base load operation between 0 to less than or equal to 2 MWth, that may include New Medium Combustion Plant greater than 1MWth, with high background NOx (less than 36 μg/m3)"]
[null,"SR2018 No 3","Specified Generator, Tranche B low risk, base load operation between 0 to less than or equal to 2MWth, that may include New Medium Combustion Plant greater than 1MWth, in Air Quality Management Areas or high ambient NOx (greater than or equal to 36 μg/m3)"]
[null,"SR2018 No 4","Specified Generator, Tranche B low risk, between 0 to less than or equal to 20 MWth of gas or abated diesel engines, that may include New Medium Combustion Plant greater than 1MWth, operated less than 500 hours a year"]
[null,"SR2018 No 5","Specified Generator, Tranche B low risk, between 0 to less than or equal to 20 MWth of gas or abated diesel engines, that may include New Medium Combustion Plant greater than 1MWth, operated less than 1,500 hours a year"]
[null,"SR2018 No 6","Specified Generator, Tranche B low risk, base load operation between 0 to less than or equal to 1.3 MWth, that may include New Medium Combustion Plant greater than 1MWth, with high background NOx (less than 36 μg/m3)"]
[null,"SR2018 No 7","New and Exisitng Medium Combustion Plant, low risk, stationary."]
[null,"SR2018 No 8","Mobile plant Specified Generator, Tranche B low risk, base load operation 0 to less than or equal to 2 MWth, that may include New Medium Combustion Plant greater than 1MWth"]
[null,"SR2018 No 9","Specified Generator, Tranche B low risk, base load operation between 0 to less than or equal to 0.9 MWth in any background NO2 concentration including within NO2 Air Quality Management Areas"]
[null,"SR2022 No 9","New and existing medium combustion plant, low risk stationary which is a natural gas boiler only"]
[]
[null,"1. Please note that you can only apply for one type of Standard Rules permit. If your plant type covers more than 1 Standard Rules set, then you will need to apply for a bespoke permit.\n2. Where a site has both existing MCPs and Tranche B specified generators, no Standard Rules are available and a bespoke application will be required.\n3. Currently, no standard rules are available for Tranche A specified generators. Please apply for a bespoke permit."]
[]
[null,"Charges"]
[]
[null,"Rule Set 2018 No 7 and 2022 No 9"]
[]
[null,"Standard Rule Reference","No of Plant on Site*","Application Fee","Annual Subsistence Fee",null,"Surrender","Transfer"]
[null,"SR2018 No 7\n\nSR2022 No 9",1,446,194,null,125,169]
[null,null,"2-3",520,256]
[null,null,"4-5",620,342]
[null,null,"6-8",720,394]
[null,null,"9-10",779,520]
[null,null,"11-15",813,620]
[]
[null,"* Application fees for Standard Rules No 7 and SR2022 No 9 which have new plant which use a common windshield. For clarity, a common windshield is a shared structure or stack which may contain one or more flues. For charging purposes, each common windshield should be counted as one plant. For example, if a site has 2 new boilers, and the individual boiler flues share a common windshield, then this would count as just 1 plant for charging purposes and the application fee would be £446. If the individual flues for the 2 new boilers do not share a common windshield, the application fee would be £520. This rule does not apply to existing plant even where they use a common windshield                                                                                                                                                                   "]
[]
[null,"Other Rule Sets (other than SR2018 No 9) covering plant that were all first brought into use on or after 20/12/2018 and each individual plant is greater than or equal to 1MWth "]
[]
[null,"Standard Rule Reference","No of Plant on Site*","Application Fee","Annual Subsistence Fee",null,"Surrender","Transfer"]
[null,"SR2018 No 1-6 and 8\nFirst brought into use on or after 20/12/2018",1,530,342,null,125,169]
[null,null,"2-3",620,373]
[null,null,"4-5",720,394]
[null,null,"6-8",813,486]
[null,null,"9-10",853,520]
[null,null,"11-15",950,530]
[]
[null,"Other Rule Sets (other than SR2018 No 9) covering plant that were all first brought into use before 20/12/2018 and/or the individual plant is less than 1MWth"]
[]
[null,"Standard Rule Reference","No of Plant on Site","Application Fee","Annual Subsistence Fee",null,"Surrender","Transfer"]
[null,"SR2018 No 1-6\nFirst brought into use before 20/12/2018","Any",221,246,null,125,169]
[null,"SR2018 No 8\nFirst brought into use before 20/12/2018",null,null,273]
[null,"SR2018 No 9",null,null,246]
[]
[null,"Applications for Standard Rule sets No 1-6, covering plant that were first brought into use on or after 20/12/2018 AND plant that were all first brought into use before 20/12/2018 and/or the individual plant is less than 1MWth"]
[null,"If your application covers a mixture of newer and older plant (pre 20/12/2018) and/or the individual plant is less than 1MWth, then to calculate your fees you must work out the cost for each component and ADD them together to calculate your Application and Subsistence charges."]
[]
[]
[null,"Examples","Detail","Plant Count","Application Fee",null,"Surrender","Transfer"]
[null,"Example 1","1 generator first brought into use before 20/12/18",1,221,null,125,169]
[null,null,"1 generator first brought into use on or after the 20/12/18",1,540]
[null,null,"Total",null,{"$f":"SUM(E73:E74)","v":761}]
[null,"Example 2","3 generators first brought into use before 20/12/18",3,221]
[null,null,"2 generators first brought into use on or after the 20/12/18",2,620]
[null,null,"Total",null,{"$f":"SUM(E76:E77)","v":841}]
[null,"Example 3","5 generators first brought into use before 20/12/18",5,221]
[null,null,"1 generator first brought into use on or after the 20/12/18",1,540]
[null,null,"Total",null,{"$f":"SUM(E79:E80)","v":761}]
[]
[]
[null,"How to Pay"]
[]
[null,"Please select the preferred payment method                                                                                                                                                                                                                                                                                                                                                                                                                                                                                                                                                                                                                                                                                                                                                                                                                                                                                                                                                                                                                                                                                                                                                                                                                                                                                                                                                                                                                                                                                                                                                                                                                                                                                                                                                                                                                                                                                                                                                           \n                                                                                                                                                                                                                                                                                                                                                                                     Debit or Credit Card: Please complete ‘cardholder payment name’ and ‘contact telephone details’ only. We will contact the cardholder by phone to take payment using the cardholder’s contact details provided. We will aim to make contact within 2 working days on receipt of the application form. Please note:                                                  \n                                                                                                                                                                                                                                                                                                 - We can only take payment over the phone from the person whose name appears on the card (cardholder). We cannot take the payment from somebody using someone else's card. Before the payment is taken over the phone, the cardholder will be asked to confirm they have permission to use the card and make this payment.\n                                                                                                                                                                                                                                                                                                 - If paying by credit or debit card, we will not store any bank details when taking payment over the phone.\n\n\n"]
[null,"Electronic Bank Transfer: If you have macros enabled on the form – all required details will automatically appear when you select this option. They are also shown below. Please ensure you quote your unique payment reference (obtained by clicking on the 'Get Payment Ref' button in the CHARGES section of the main application form). Please send proof of your bank transfer with your completed application.  \n\nPlease use the following information to pay by Electronic Transfer (BACS):\nCompany Name: Environment Agency\nCompany Address: SSCL (Environment Agency), Room 6105, Tomlinson House, Norcross Lane, Thornton-Cleveleys, FY5 3FW\nBank: RBS/NatWest\nAddress: London Corporate Service Centre, CPB Services, 2nd Floor, 280 Bishopsgate, London EC2M 4RB\nSort code: 60-70-80\nAccount number: 10014411\nAccount name: EA RECEIPTS\nIBAN Number: GB23NWBK60708010014411 \nSWIFT/BIC Code: NWBKGB2L \nEnvironment Agency VAT No: GB 662 4901 34"]
[null,"Questions about Making Payment: Complete the contact name and contact telephone details. We will use these contact details provided and will aim to make contact within 5 working days of receipt of the application form.  \n"]
[]
[null,"How to Contact Us"]
[null,"If you need help filling in this form, please contact us as at the following: "]
[null," MCPD-Application@environment-agency.gov.uk"]
[]
[]
[null,"Submitting Your Application"]
[]
[null,"Save a copy of your application for your records."]
[null,"Send a completed copy of the application together with proof of payment (if paid by BACS only), site plan with all the emission points marked and evidence to confirm that the emission limit values in the standard rules permit can be met (if applicable)."]
[null," MCPD-Application@environment-agency.gov.uk"]
[null,"Please use Applicant Name and Unique Payment Reference in Subject Line."]
[]
[]
[null,"Navigation"]
[null,"Please read the information on data privacy:","Privacy Notice – GDPR tab"]
[null,"The application form itself can be found here:","Application tab"]

{"sheet":"Privacy Notice – GDPR","index":1,"n_rows":10,"n_cols":3,"rows_kept":10,"cut":false,"hidden":false,"merged":[]}
[]
[]
[]
[]
[]
[]
[]
[]
[null,null,"Please use this link to view the Environment Agency Environmental Permits Privacy Notice:"]
[null,null,"Environmental permits privacy notice - GOV.UK (www.gov.uk)"]

{"sheet":"NamedRanges","index":2,"n_rows":156,"n_cols":9,"rows_kept":156,"cut":false,"hidden":true,"merged":[]}
["applicants","Applicants!$A$1:$E$3"]
["CardHolderTitle","Application!$B$153"]
["OperatorIsHolder","Application!$B$179"]
["LegalContactName","Application!$C$186"]
["SignedBy","Application!$C$188"]
["SignedDate","Application!$C$190"]
["LocalAuth","Application!$D$100"]
["PlantnameSing","Application!$D$104"]
["SerialNo","Application!$D$105"]
["Plant_Easting","Application!$D$107"]
["Plant_Northing","Application!$D$108"]
["PlantAge","Application!$D$110"]
["Technology","Application!$D$112"]
["Fuel","Application!$D$114"]
["LimitedOpHours","Application!$D$116"]
["IndTitle","Application!$D$12"]
["AQMA","Application!$D$125"]
["HumanReceptor","Application!$D$127"]
["EcoReceptor","Application!$D$129"]
["BackgroundNO2","Application!$D$131"]
["IndFirstName","Application!$D$14"]
["ChargeDue","Application!$D$149"]
["PaidDate","Application!$D$151"]
["CardHolderName","Application!$D$153"]
["IndSurname","Application!$D$16"]
["ChargePaid","Application!$D$160"]
["IndDoB","Application!$D$18"]
["TypeofOrg","Application!$D$22"]
["OrgName","Application!$D$24"]
["TypeofPubBody","Application!$D$30"]
["PubBodyName","Application!$D$32"]
["CompanyName","Application!$D$38"]
["CompanyNum","Application!$D$40"]
["CoRegDate","Application!$D$42"]
["MainAdd_premise","Application!$D$48"]
["mainAdd_Street","Application!$D$49"]
["mainAdd_Locality","Application!$D$50"]
["mainAdd_Town","Application!$D$51"]
["mainAdd_Postcode","Application!$D$52"]
["AppContact_FName","Application!$D$56"]
["AppContact_LastName","Application!$D$57"]
["AppContact_Tel","Application!$D$58"]
["AppContact_email","Application!$D$59"]
["AppType","Application!$D$6"]
["copyAppContact","Application!$D$61"]
["AppContact_Premise","Application!$D$63"]
["AppContact_Street","Application!$D$64"]
["AppContact_Locality","Application!$D$65"]
["AppContact_Town","Application!$D$66"]
["AppContact_Postcode","Application!$D$67"]
["Ruleset","Application!$D$84"]
["MultiPlant","Application!$D$88"]
["NaceCode","Application!$D$90"]
["SiteName","Application!$D$93"]
["SiteAddr_Premise","Application!$D$94"]
["SiteAddr_Street","Application!$D$95"]
["SiteAddr_Locality","Application!$D$96"]
["SiteAddr_Town","Application!$D$97"]
["SiteAddr_Postcode","Application!$D$98"]
["propNaturalGas","Application!$E$119"]
["propBiogas","Application!$E$120"]
["propGasOil","Application!$E$121"]
["PropOther","Application!$E$122"]
["HasEMS","Application!$E$139"]
["EMSType","Application!$E$141"]
["MobilePlant","Application!$E$97"]
["isAuthorisedPerson","Application!$F$168"]
["DeclareMeetsRules","Application!$F$170"]
["EvidenceAtt","Application!$F$175"]
["sitePlanAttached","Application!$F$177"]
["AppOperator","Application!$F$179"]
["infoIsAccurate","Application!$F$181"]
["OnBehalfOf","Application!$F$190"]
["SRPDesc","Application!$F$84"]
["PlantCount","Application!$F$88"]
["legalContactEmail","Application!$G$186"]
["PosInOrg","Application!$G$188"]
["PlantMaker","Application!$H$105"]
["Plant_Lat","Application!$H$107"]
["Plant_Long","Application!$H$108"]
["SizeMW","Application!$H$110"]
["StackHeight","Application!$H$112"]
["AnnualHours","Application!$H$114"]
["otherFuel","Application!$H$122"]
["AQMADetails","Application!$H$125"]
["HumanReceptorDetails","Application!$H$127"]
["EcoReceptorDetails","Application!$H$129"]
["Verified","Application!$H$135",null,null,null,null,"ChargeComments",null,"Good"]
["PaymentMethod","Application!$H$149"]
["PaymentRef","Application!$H$151"]
["CardHolderTel","Application!$H$153"]
["PaymentComments","Application!$H$160"]
["CopyBusAddress","Application!$H$46"]
["BusAdd_Premise","Application!$H$48"]
["BusAdd_Street","Application!$H$49"]
["BusAdd_Locality","Application!$H$50"]
["BusAdd_Town","Application!$H$51"]
["BusAdd_Postcode","Application!$H$52"]
["CopyApplicationContact","Application!$H$54"]
["OpContact_FName","Application!$H$56"]
["OpContact_LastName","Application!$H$57"]
["OpContact_Tel","Application!$H$58"]
["OpContact_email","Application!$H$59"]
["copyOpContact","Application!$H$61"]
["OpContact_Premise","Application!$H$63"]
["OpContact_Street","Application!$H$64"]
["OpContact_Locality","Application!$H$65"]
["OpContact_Town","Application!$H$66"]
["OpContact_Postcode","Application!$H$67"]
["Bankrupt","Application!$H$78"]
["CCNS","Application!$I$181"]
["VersionDat","Application!$J$2"]
["RelevantConvictions","Application!$J$72"]
["EEDirActivity","Application!$K$102"]
["ModelName","Application!$K$105"]
["hasSharedStack","Application!$K$130"]
["ChargeComments","Application!$K$149"]
["SubFees","Application!$K$151"]
["CardHolderEmail","Application!$K$153"]
["CardHolderEmailold","Application!$K$153"]
["MacrosON","Application!$K$2"]
["Pre21Dec","Application!$K$88"]
["hasExistingPermit","Application!$K$95"]
["existingPermitRef","Application!$K$97"]
["AnnualLoad","Application!$L$114"]
["CopyBillingAddress","Application!$L$46"]
["CopyBilllingAddress","Application!$L$46"]
["BillAdd_Premise","Application!$L$48"]
["BillAdd_Street","Application!$L$49"]
["BillAdd_Locality","Application!$L$50"]
["BillAdd_Town","Application!$L$51"]
["BillAdd_Postcode","Application!$L$52"]
["CopyBillingContact","Application!$L$54"]
["BillContact_FName","Application!$L$56"]
["BillContact_LastName","Application!$L$57"]
["BillContact_Tel","Application!$L$58"]
["BillContact_email","Application!$L$59"]
["copyBillContact","Application!$L$61"]
["BillContact_Premise","Application!$L$63"]
["BillContact_Street","Application!$L$64"]
["BillContact_Locality","Application!$L$65"]
["BillContact_Town","Application!$L$66"]
["BillContact_Postcode","Application!$L$67"]
["bankruptDocRef","Application!$L$80"]
["isSG","Application!$L$86"]
["Fee","Application!$M$150"]
["SubsAdd_Premise","Application!$P$48"]
["SubsAdd_Street","Application!$P$49"]
["SubsAdd_Locality","Application!$P$50"]
["SubsAdd_Town","Application!$P$51"]
["SubsAdd_Postcode","Application!$P$52"]
["CommonWindS","Common Windshields'!$A$9"]
["Plant1","Plant Details'!$B$4"]
["FuelComments","Plant Details'!$M$21"]
["RelevantConvictionDetails","Relevant Convictions'!$B$2"]
["SecondaryAbatement","Application!$D$133"]

{"sheet":"Rule Set Helper","index":3,"n_rows":29,"n_cols":11,"rows_kept":29,"cut":false,"hidden":false,"merged":[[18,8,18,11],[4,10,14,10]]}
[]
[null,"About your equipment"]
[]
[null,null,"What does your plant consist of? ","MCP Only",null,null,null,null,"Available Options"]
[null,null,null,null,null,null,null,null,null,null,"No standard rule set applies. Please apply for a bespoke permit"]
[null,null,"Is your plant fixed or mobile?","Fixed"]
[null,null,null,null,null,null,null,null,2]
[null,null,"What is the cumulative net rated thermal input of your plant?",null,"MWth"]
[null,null,null,null,null,"Will exisitng plant"]
[null,null,"What is the thermal Input of your largest individual 'Exisiting' plant?",">= 5 but < 10","MWth","meet new standards?"]
[null,null,null,null,null,"Yes"]
[null,null,"What is the thermal input of your largest individual 'New' plant?",">= 1 but < 5","MWth"]
[]
[null,null,"How many hours a year does your plant operate?",">1500-7000"]
[]
[null,null,"What technology does your plant use?","Boiler"]
[]
[null,null,"What fuel does your plant use (main fuel)?","Natural Gas"]
[]
[null,null,"What is the height of the stack above ground level?",">= 3 but < 15","metres"]
[]
[null,"About your location"]
[null,null,"Is your plant located in an Air Quality Management Area (AQMA)?","Yes"]
[]
[null,null,"What is the background NO2 level?","<= 31","μg/m3"]
[]
[null,null,"What is the shortest distance from any part of your plant to a SAC, SPA, Ramsar or SSSI?",2700,"metres"]
[]
[null,null,"What is the shortest distance from any part of your plant to a place of Human Occupation?",1200,"metres"]

{"sheet":"LkupLists","index":4,"n_rows":375,"n_cols":34,"rows_kept":375,"cut":false,"hidden":true,"merged":[[53,0,53,8],[1,20,6,20],[53,16,53,17],[53,9,53,15]]}
["Applicant Types","Mulitple Location","D.o.B","Rule Sets","RuleSet Desc","YesNo","Payment Methods","Technology","Fuel","Titles","Rule","Plant min","Plant max","Code","Cost","EMS","FailText","SharedStack","CopyFrom","PlantDate","Rule","Plant min","Plant max","Code","Cost",null,"Abatement Type",null,null,null,null,"NACE","Local Authority","ONS LA CODE"]
["Individual","Single medium combustion plant/generator",{"$f":"NOW() -((18*365)+4)","v":"2006-05-14T15:45:46.330"},"SR2018 No 1","Specified Generator, Tranche B low risk, base load operation up to 5 MW. Not in Air Quality Management Area, Background NO2 no greater than 31 ug/m3","Yes","Debit/Credit Card","Boiler ","Gas Oil","Mr","SR2018 No 7",1,1,1.1299999999999999,446,"EC Eco-Management and Audit Scheme (EMAS) ","MinThermal Input","Not Applicable","Registered Address","No","SR2018\nNo 1-6, 8",1,1,null,530,null,"SNCR",null,null,null,null,"A.01 - Agriculture, hunting and related service activities","Adur District Council"]
["Organisation of Individuals","Multiple medium combustion plant/generators",{"$f":"NOW()-(365 * 100.1)","v":"1924-05-02T03:45:46.330"},"SR2018 No 2","Specified Generator, Tranche B low risk, base load operation up to 2 MW with high background NO2 (up to 36 ug/m3)","No","Electronic Transfer/Bacs","Engine","Natural Gas","Mrs","SR2018 No 7",2,3,"SO50C",520,"EMAS Easy","Max Thermal Input","No","Business Address","Yes",null,2,3,null,620,null,"Particulates",null,null,null,null,"A.01 - Crop and animal production, hunting and related service activities","Allerdale Borough Council"]
["Public Body","Mobile medium combustion plant/generator",null,"SR2018 No 3","Specified Generator, Tranche B low risk, base load operation up to 2 MW in Air Quality Management Areas and/or very high background NO2 (over 36 ug/m3)","NA","Payment Query - Ring Back","Back up Generator (50h/yr Testing)","Biogas","Miss","SR2018 No 7",4,5,"1.19.8",620,"ISO 14001 ","Stack Height","Yes - But can be monitored separately","Billing Address","Part yes and part no",null,4,5,null,720,null,"SNCR + Particulates",null,null,null,null,"A.02 - Forestry and logging","Amber Valley Borough Council"]
["Registered Company",null,null,"SR2018 No 4","Specified Generator, Tranche B low risk, up to 20 MW of abated diesel or gas engines operated less than 500 hours a year",null,null,"Turbine","Other Gaseous Fuel","Ms","SR2018 No 7",6,8,"SO40A",720,"BS 8555 (Phases 1-5)","Human Receptor","Yes - Cannot be monitored separately",null,null,null,6,8,null,813,null,"Other",null,null,null,null,"A.03 - Fishing and aquaculture","Arun District Council"]
[null,null,null,"SR2018 No 5","Specified Generator, Tranche B low risk,  up to 20 MW of abated diesel or gas engines operated less than 1500 hours a year",null,null,"CHP Boiler",null,"Dr","SR2018 No 7",9,10,"1.19.2",779,"Acorn","Sac Spar SSSI",null,null,null,null,9,10,null,853,null,null,null,null,null,null,"B.05 - Fishing, operation of fish hatcheries and fish farms/ service activities incidental to fishing","Ashfield District Council"]
[null,null,null,"SR2018 No 6","Specified Generator, Tranche B low risk, base load operation up to 1.3 MW with high background NO2  (up to 36 ug/m3)",null,null,"CHP Engine",null,null,"SR2018 No 7",11,15,"1.3.1",813,"Green Dragon","Background NO2",null,null,null,null,11,15,null,950,null,null,null,null,null,null,"B.05 - Mining of coal and lignite","Ashford Borough Council"]
[null,null,null,"SR2018 No 7","New Medium Combustion Plant, low risk, stationary  from 1 to <20MW per plant, (<50MW total) in operation on/after 20/12/2018",null,null,null,null,null,"Other SG",1,1,"1.1.2",221,"Own Management system","Fuel",null,null,null,null,null,null,null,null,null,null,null,null,null,null,"B.06 - Extraction of crude petroleum and natural gas","Aylesbury Vale District Council "]
[null,null,null,"SR2018 No 8","Specified Generator, Mobile Plant Tranche B low risk, base load operation up to 2 MW",null,null,null,null,null,null,null,null,null,null,null,"AQMA",null,null,null,null,null,null,null,null,null,null,null,null,null,null,"B.07 - Mining of metal ores","Babergh District Council"]
[null,null,null,"SR2018 No 9","Specified Generator, Tranche B low risk, base load operation up to 0.9 MWth ",null,null,null,null,null,null,null,null,null,null,null,"Max Hours",null,null,null,null,null,null,null,null,null,null,null,null,null,null,"B.08 - Other mining and quarrying","Barnsley Metropolitan Borough Council"]
[null,null,null,"SR2022 No 9","MCP Boiler (correct desc to follow)",null,null,null,null,null,null,null,null,null,null,null,"Mobile",null,null,null,null,null,null,null,null,null,null,null,null,null,null,"B.09 - Mining support service activities","Barrow-in-Furness Borough Council"]
[null,null,null,null,null,null,null,null,null,null,null,null,null,null,null,null,null,null,null,null,null,null,null,null,null,null,null,null,null,null,null,"C.10 - Manufacture of food products","Basildon District Council"]
[null,null,null,null,null,null,null,null,null,10,11,12,13,14,null,null,null,null,null,null,null,null,null,null,null,null,null,null,null,null,null,"C.11 - Manufacture of beverages","Basingstoke & Deane Borough Council"]
["Rule Set","Type","Technology","Fuel","MinThermal Input","Max Thermal Input","Stack Height","Human Receptor","Eco receptor","Eco Receptor New","Background NO2","AQMA","Annual Hours","Mobile","Technology","Fuel","Total MWth (Input)","Total MWth (Input)","Stack Height","Human Receptor","Ecological Receptor","Background NO2","AQMA","Annual Hours","Mobile","All plants >=1 MWth","Cond Met","Failures","No of Fails","Used",null,"C.12 - Manufacture of tobacco products","Bassetlaw District Council"]
["SR2018 No 1","SG","Engine, Turbine, CHP Boiler, CHP Engine","Natural Gas, Biogas",0,2,3,100,400,400,31,"No",null,"No",{"$f":"IF(C15 <> \"\",NOT(ISERROR(SEARCH(Technology,C15))),TRUE)","v":true},{"$f":"IF(LEFT(D15,1)=\"x\",Fuel<>RIGHT(D15,LEN(D15)-1),NOT(ISERROR(SEARCH(Fuel,D15))))","v":true},{"$f":"SizeMW>E15","v":true},{"$f":"SizeMW<=F15","v":false},{"$f":"IF(G15<>\"\", StackHeight>=G15, TRUE)","v":true},{"$f":"IF(H15<>\"\",HumanReceptor>=H15, TRUE)","v":true},{"$f":"IF(NewELVS=TRUE,EcoReceptor>=J15,EcoReceptor>=I15)","v":true},{"$f":"IF(K15=\"\",TRUE,IF(BackgroundNO2<>\"\",BackgroundNO2<=K15,FALSE))","v":true},{"$f":"AQMA=L15","v":true},{"$f":"AnnualHours<=IF(M15<>\"\",M15,AnnualHours)","v":true},{"$f":"MobilePlant=N15","v":true},null,{"$f":"AND(O15,P15,Q15,R15,S15,T15,U15,V15,W15,X15,Y15)","v":false},{"$f":"\" \"&IF(O15=FALSE,$O$14&\" , \",\"\")&IF(P15=FALSE,$P$14 & \" , \",\"\")&IF(Q15=FALSE,$Q$14&\" , \",\"\")&IF(R15=FALSE,$R$14&\" , \",\"\")&IF(S15=FALSE,$S$14&\" , \",\"\")&IF(T15=FALSE,$T$14&\" , \",\"\")&IF(U15=FALSE,$U$14&\" , \",\"\")&IF(V15=FALSE,$V$14&\" , \",\"\")&IF(W15=FALSE,$W$14&\" , \",\"\")&IF(X15=FALSE,$X$14&\" , \",\"\")&IF(Y15=FALSE,$Y$14&\" , \",\"\")","v":" Total MWth (Input) , "},{"$f":"COUNTIF(O15:Z15,\"FALSE\")","v":1},{"$f":"IF(A15=Ruleset,\"used\",\"\")","v":""},null,"C.13 - Manufacture of textiles","Bath & North East Somerset Council"]
["SR2018 No 1","SG","Engine, Turbine, CHP Boiler, CHP Engine","Natural Gas, Biogas",2.0000100000000001,5,3,150,600,600,31,"No",null,"No",true,true,{"$f":"SizeMW>=E16","v":true},true,true,true,true,{"$f":"IF(K16=\"\",TRUE,IF(BackgroundNO2<>\"\",BackgroundNO2<=K16,FALSE))","v":true},{"$f":"AQMA=L16","v":true},true,true,null,{"$f":"AND(O16,P16,Q16,R16,S16,T16,U16,V16,W16,X16,Y16)","v":true}," ",{"$f":"COUNTIF(O16:Z16,\"FALSE\")","v":0},"",null,"C.14 - Manufacture of wearing apparel","Bedford Borough Council"]
["SR2018 No 2","SG","Engine, Turbine, CHP Boiler, CHP Engine","Natural Gas",0,2,15,null,500,500,36,"No",null,"No",true,true,{"$f":"SizeMW>E17","v":true},false,false,true,true,{"$f":"IF(K17=\"\",TRUE,IF(BackgroundNO2<>\"\",BackgroundNO2<K17,FALSE))","v":true},{"$f":"AQMA=L17","v":true},true,true,null,false," Total MWth (Input) , Stack Height , ",2,"",null,"C.15 - Manufacture of leather and related products","Birmingham City Council"]
["SR2018 No 3","SG","Engine, Turbine, CHP Boiler, CHP Engine","Natural Gas",0,2,15,null,300,300,null,"Yes",null,"No",true,true,true,false,false,true,true,{"$f":"IF(K18=\"\",TRUE,IF(BackgroundNO2<>\"\",BackgroundNO2>=K18,FALSE))","v":true},{"$f":"AQMA=L18","v":false},true,true,null,false," Total MWth (Input) , Stack Height , AQMA , ",{"$f":"COUNTIF(O18:Z18,\"FALSE\")","v":3},"",null,"C.16 - Manufacture of wood and of products of wood and cork, except furniture; manufacture of articles of straw and plaiting materials","Blaby District Council"]
["SR2018 No 3","SG","Engine, Turbine, CHP Boiler, CHP Engine","Natural Gas",0,2,15,null,300,300,36,"No",null,"No",{"$f":"IF(C19 <> \"\",NOT(ISERROR(SEARCH(Technology,C19))),TRUE)","v":true},true,true,false,false,true,true,{"$f":"IF(K19=\"\",TRUE,IF(BackgroundNO2<>\"\",BackgroundNO2>=K19,FALSE))","v":false},{"$f":"IF(L19<>\"\",OR(AQMA=L19, AQMA=\"No\"), TRUE)","v":true},true,true,null,false," Total MWth (Input) , Stack Height , Background NO2 , ",{"$f":"COUNTIF(O19:Z19,\"FALSE\")","v":3},"",null,"C.17 - Manufacture of paper and paper products","Blackburn with Darwen Borough Council"]
["SR2018 No 4","SG","Engine, Turbine","Natural Gas, Gas Oil",0,20,3,150,600,600,31,"No",500,"No",true,true,true,true,true,true,true,{"$f":"IF(K20=\"\",TRUE,IF(BackgroundNO2<>\"\",BackgroundNO2<=K20,FALSE))","v":true},{"$f":"AQMA=L20","v":true},false,true,null,false," Annual Hours , ",1,"",null,"C.18 - Printing and reproduction of recorded media","Blackpool Borough Council"]
["SR2018 No 5","SG","Engine, Turbine","Natural Gas, Gas Oil",0,20,3,150,600,600,31,"No",1500,"No",true,true,true,true,true,true,true,{"$f":"IF(K21=\"\",TRUE,IF(BackgroundNO2<>\"\",BackgroundNO2<=K21,FALSE))","v":true},{"$f":"AQMA=L21","v":true},false,true,null,false," Annual Hours , ",1,"",null,"C.19 - Manufacture of coke and refined petroleum products","Blaenau Gwent County Borough Council  "]
["SR2018 No 6","SG","Engine, Turbine, CHP Boiler, CHP Engine","Natural Gas",0,1.3,15,null,500,500,36,"No",7000,"No",true,true,true,false,false,true,true,{"$f":"IF(K22=\"\",TRUE,IF(BackgroundNO2<>\"\",BackgroundNO2<K22,FALSE))","v":true},{"$f":"AQMA=L22","v":true},true,true,null,{"$f":"AND(O22,P22,Q22,R22,S22,T22,U22,V22,W22,X22,Y22)","v":false}," Total MWth (Input) , Stack Height , ",2,"",null,"C.20 - Manufacture of chemicals and chemical products","Bolsover District Council"]
["SR2018 No 7","MCP","Boiler ","Biogas",1,50,null,null,4000,3000,null,null,null,"No",true,true,{"$f":"SizeMW>=E23","v":true},{"$f":"SizeMW<F23","v":true},true,true,false,true,{"$f":"IF(L23<>\"\",OR(AQMA=L23, AQMA=\"No\"), TRUE)","v":true},true,true,{"$f":"AllOver1","v":true},{"$f":"AND(O23,P23,Q23,R23,S23,T23,U23,V23,W23,X23,Y23,Z23)","v":false},{"$f":"\" \"&IF(O23=FALSE,$O$14&\" , \",\"\")&IF(P23=FALSE,$P$14 & \" , \",\"\")&IF(Q23=FALSE,$Q$14&\" , \",\"\")&IF(R23=FALSE,$R$14&\" , \",\"\")&IF(S23=FALSE,$S$14&\" , \",\"\")&IF(T23=FALSE,$T$14&\" , \",\"\")&IF(U23=FALSE,$U$14&\" , \",\"\")&IF(V23=FALSE,$V$14&\" , \",\"\")&IF(W23=FALSE,$W$14&\" , \",\"\")&IF(X23=FALSE,$X$14&\" , \",\"\")&IF(Y23=FALSE,$Y$14&\" , \",\"\")&IF(Z23=FALSE,$Z$14 & \" , \",\"\")","v":" Ecological Receptor , "},1,"used",null,"C.21 - Manufacture of basic pharmaceutical products and pharmaceutical preparations","Bolton Metropolitan Borough Council"]
["SR2018 No 7","MCP","Boiler ","Gas Oil",1,50,null,null,800,800,null,null,null,"No",true,true,true,true,true,true,true,true,true,true,true,true,{"$f":"AND(O24,P24,Q24,R24,S24,T24,U24,V24,W24,X24,Y24,Z24)","v":true}," ",0,"used",null,"C.22 - Manufacture of rubber and plastic products","Borough of Poole Council"]
["SR2018 No 7","MCP","Boiler ","Natural Gas",1,50,null,null,800,500,null,null,null,"No",true,true,true,true,true,true,true,true,true,true,true,true,true," ",0,"used",null,"C.23 - Manufacture of other non-metallic mineral products","Boston Borough Council"]
["SR2018 No 7","MCP","Boiler ","Other Gaseous Fuel",1,50,null,null,1800,1700,null,null,null,"No",true,true,true,true,true,true,true,true,true,true,true,true,true," ",0,"used",null,"C.24 - Manufacture of basic metals","Bournemouth Borough Council"]
["SR2018 No 7","MCP","Engine, Turbine","Biogas",1,50,null,null,5000,4000,null,null,null,"No",true,true,true,true,true,true,false,true,true,{"$f":"AnnualHours<=IF(M27<>\"\",M27,AnnualHours)","v":true},true,true,false," Ecological Receptor , ",1,"used",null,"C.25 - Manufacture of fabricated metal products, except machinery and equipment","Bracknell Forest Borough Council"]
["SR2018 No 7","MCP","Engine, Turbine","Gas Oil",1,50,null,null,1500,1500,null,null,null,"No",true,true,true,true,true,true,true,true,true,true,true,true,true," ",0,"used",null,"C.26 - Manufacture of computer, electronic and optical products","Braintree District Council"]
["SR2018 No 7","MCP","Engine, Turbine","Natural Gas",1,50,null,null,1600,1000,null,null,null,"No",true,true,true,true,true,true,true,true,true,true,true,true,true," ",0,"used",null,"C.27 - Manufacture of electrical equipment","Breckland Council"]
["SR2018 No 7","MCP","Engine, Turbine","Other Gaseous Fuel",1,50,null,null,2500,2500,null,null,null,"No",true,true,true,true,true,true,true,true,true,true,true,true,true," ",0,"used",null,"C.28 - Manufacture of machinery and equipment n.e.c.","Brentwood Borough Council"]
["SR2018 No 7","MCP","Back up Generator (50h/yr Testing)","Biogas",1,50,null,null,200,150,null,null,null,"No",true,true,true,true,true,true,true,true,true,true,true,true,true," ",0,"used",null,"C.29 - Manufacture of motor vehicles, trailers and semi-trailers","Brighton & Hove City Council"]
["SR2018 No 7","MCP","Back up Generator (50h/yr Testing)","Gas Oil",1,50,null,null,250,250,null,null,null,"No",true,true,true,true,true,true,true,true,true,true,true,true,true," ",0,"used",null,"C.30 - Manufacture of other transport equipment","Bristol City Council"]
["SR2018 No 7","MCP","Back up Generator (50h/yr Testing)","Natural Gas",1,50,null,null,100,100,null,null,null,"No",true,true,true,true,true,true,true,true,true,true,true,true,true," ",0,"used",null,"C.31 - Manufacture of furniture","Broadland District Council"]
["SR2018 No 7","MCP","Back up Generator (50h/yr Testing)","Other Gaseous Fuel",1,50,null,null,150,150,null,null,null,"No",true,true,true,true,true,true,true,true,true,true,{"$f":"MobilePlant=N34","v":true},true,true," ",0,"used",null,"C.32 - Other manufacturing","Bromsgrove District Council"]
["SR2018 No 8","SG","Engine, Turbine","Gas Oil",0,2,2,null,100,100,31,"No",500,"Yes",true,true,{"$f":"SizeMW>E35","v":true},{"$f":"SizeMW<=F35","v":false},true,true,true,{"$f":"IF(K35=\"\",TRUE,IF(BackgroundNO2<>\"\",BackgroundNO2<=K35,FALSE))","v":true},{"$f":"AQMA=L35","v":true},{"$f":"AnnualHours<=IF(M35<>\"\",M35,AnnualHours)","v":false},{"$f":"MobilePlant=N35","v":false},true,{"$f":"AND(O35,P35,Q35,R35,S35,T35,U35,V35,W35,X35,Y35)","v":false}," Total MWth (Input) , Annual Hours , Mobile , ",3,"",null,"C.33 - Repair and installation of machinery and equipment","Broxbourne Borough Council"]
["SR2018 No 8","SG","Engine, Turbine","Gas Oil",0,2,2,100,200,200,31,"No",1500,"Yes",true,true,{"$f":"SizeMW>E36","v":true},false,true,true,true,{"$f":"IF(K36=\"\",TRUE,IF(BackgroundNO2<>\"\",BackgroundNO2<=K36,FALSE))","v":true},{"$f":"AQMA=L36","v":true},false,{"$f":"MobilePlant=N36","v":false},true,false,{"$f":"\" \"&IF(O36=FALSE,$O$14&\" , \",\"\")&IF(P36=FALSE,$P$14 & \" , \",\"\")&IF(Q36=FALSE,$Q$14&\" , \",\"\")&IF(R36=FALSE,$R$14&\" , \",\"\")&IF(S36=FALSE,$S$14&\" , \",\"\")&IF(T36=FALSE,$T$14&\" , \",\"\")&IF(U36=FALSE,$U$14&\" , \",\"\")&IF(V36=FALSE,$V$14&\" , \",\"\")&IF(W36=FALSE,$W$14&\" , \",\"\")&IF(X36=FALSE,$X$14&\" , \",\"\")&IF(Y36=FALSE,$Y$14&\" , \",\"\")","v":" Total MWth (Input) , Annual Hours , Mobile , "},3,"",null,"CA.10 - Mining of coal and lignite/ extraction of peat","Broxtowe Borough Council"]
["SR2018 No 8","SG","Engine, Turbine","Gas Oil",0,2,2,250,600,600,31,"No",8760,"Yes",true,true,{"$f":"SizeMW>E37","v":true},false,true,true,true,{"$f":"IF(K37=\"\",TRUE,IF(BackgroundNO2<>\"\",BackgroundNO2<=K37,FALSE))","v":true},{"$f":"AQMA=L37","v":true},true,{"$f":"MobilePlant=N37","v":false},true,false," Total MWth (Input) , Mobile , ",2,"",null,"CA.11 - Extraction of crude petroleum and natural gas/ service activities","Buckinghamshire County Council"]
["SR2018 No 9","SG","Engine, Turbine, CHP Boiler, CHP Engine","Natural Gas",0,0.9,15,null,500,500,null,"Yes",7000,"No",true,true,{"$f":"SizeMW>=E38","v":true},false,false,true,true,{"$f":"IF(K38=\"\",TRUE,IF(BackgroundNO2<>\"\",BackgroundNO2>K38,FALSE))","v":true},{"$f":"IF(L38<>\"\",OR(AQMA=L38, AQMA=\"No\"), TRUE)","v":true},true,true,true,false," Total MWth (Input) , Stack Height , ",2,"",null,"CB.13 - Mining of metal ores","Burnley Borough Council"]
["SR2022 No 9","MCP","Boiler ","Natural Gas",1,4.99,null,null,600,300,null,null,null,"No",true,true,{"$f":"SizeMW>=1","v":true},{"$f":"SizeMW<=50","v":true},true,true,{"$f":"IF(sizeRange=1,IF(NewELVS=TRUE,EcoReceptor>=J39,EcoReceptor>=I39),FALSE)","v":false},{"$f":"IF(K39=\"\",TRUE,IF(BackgroundNO2<>\"\",BackgroundNO2>K39,FALSE))","v":true},{"$f":"IF(L39<>\"\",OR(AQMA=L39, AQMA=\"No\"), TRUE)","v":true},true,{"$f":"MobilePlant=N39","v":true},true,false," Ecological Receptor , ",1,"",null,"CB.14 - Other mining and quarrying","Bury Metropolitan Borough Council"]
["SR2022 No 9","MCP","Boiler ","Natural Gas",5,9.99,null,null,600,400,null,null,null,"No",true,true,{"$f":"SizeMW>=1","v":true},{"$f":"SizeMW<=50","v":true},true,true,{"$f":"IF(sizeRange=2,IF(NewELVS=TRUE,EcoReceptor>=J40,EcoReceptor>=I40),FALSE)","v":false},{"$f":"IF(K40=\"\",TRUE,IF(BackgroundNO2<>\"\",BackgroundNO2>K40,FALSE))","v":true},{"$f":"IF(L40<>\"\",OR(AQMA=L40, AQMA=\"No\"), TRUE)","v":true},true,{"$f":"MobilePlant=N40","v":true},true,false," Ecological Receptor , ",{"$f":"COUNTIF(O40:Z40,\"FALSE\")","v":1},"",null,"D.35 - Electricity, gas, steam and air conditioning supply","Calderdale Council"]
["SR2022 No 9","MCP","Boiler ","Natural Gas",10,14.99,null,null,700,450,null,null,null,"No",true,true,{"$f":"SizeMW>=1","v":true},{"$f":"SizeMW<=50","v":true},true,true,{"$f":"IF(sizeRange=3,IF(NewELVS=TRUE,EcoReceptor>=J41,EcoReceptor>=I41),FALSE)","v":false},{"$f":"IF(K41=\"\",TRUE,IF(BackgroundNO2<>\"\",BackgroundNO2>K41,FALSE))","v":true},{"$f":"IF(L41<>\"\",OR(AQMA=L41, AQMA=\"No\"), TRUE)","v":true},true,{"$f":"MobilePlant=N41","v":true},true,false," Ecological Receptor , ",{"$f":"COUNTIF(O41:Z41,\"FALSE\")","v":1},"",null,"DA.15 - Manufacture of food products and beverages","Cambridge City Council"]
["SR2022 No 9","MCP","Boiler ","Natural Gas",15,19.989999999999998,null,null,800,500,null,null,null,"No",true,true,{"$f":"SizeMW>=1","v":true},{"$f":"SizeMW<=50","v":true},true,true,{"$f":"IF(sizeRange=4,IF(NewELVS=TRUE,EcoReceptor>=J42,EcoReceptor>=I42),FALSE)","v":true},{"$f":"IF(K42=\"\",TRUE,IF(BackgroundNO2<>\"\",BackgroundNO2>K42,FALSE))","v":true},{"$f":"IF(L42<>\"\",OR(AQMA=L42, AQMA=\"No\"), TRUE)","v":true},true,{"$f":"MobilePlant=N42","v":true},true,true," ",{"$f":"COUNTIF(O42:Z42,\"FALSE\")","v":0},"",null,"DA.16 - Manufacture of tobacco products","Cambridgeshire County Council"]
[null,null,null,null,null,null,null,null,null,null,null,null,null,null,null,null,null,null,null,null,null,null,null,null,null,null,null,null,null,null,null,"DB.17 - Manufacture of textiles","Cannock Chase District Council"]
[null,null,null,null,"Highest MW",0,"size Range",{"$f":"IF(AND(HighMW >=E39, HighMW <=F39),1,IF(AND(HighMW >=E40, HighMW <=F41),2,IF(AND(HighMW >=E41, HighMW <=F41),3,4)))","v":4},null,null,null,null,null,null,null,null,null,null,null,null,null,null,null,null,null,null,null,null,null,null,null,"E.36 - Water collection, treatment and supply","Canterbury City Council"]
[null,null,null,null,"Total MW",{"$f":"SizeMW","v":3.2},null,null,null,null,null,null,null,null,null,null,null,null,null,null,null,null,null,null,null,null,null,null,null,null,null,"E.37 - Sewerage","Caradon District Council"]
[null,null,null,null,null,null,null,null,null,null,null,null,null,null,null,null,null,null,null,null,null,null,null,null,null,null,null,null,null,null,null,"E.38 - Waste collection, treatment and disposal activities; materials recovery","Carlisle City Council"]
[null,"Fixed",">7000 (24/7)","Boiler","MCP Only","Yes","<= 31","<2","Biogas",">= 1 but < 5",null,null,null,null,null,null,"Equals","Instr","Numeric",null,null,null,null,null,null,null,null,null,null,null,null,"F.39 - Remediation activities and other waste management services","Carrick District Council"]
[null,"Mobile",">1500-7000","Engine/Turbine","Generator(s)","No","> 31 but < 36",">= 2 but < 3","Gas Oil",">= 5 but < 10",null,null,null,null,null,null,"ansFixedMob","ansOpHours","ansEcoReceptor",null,null,null,null,null,null,null,null,null,null,null,null,"F.41 - Construction of buildings","Castle Point Borough Council"]
[null,null,">500-1500","Engine (50h/yr limit)",null,null,">= 36",">= 3 but < 15","Natural Gas",">= 10 but < 15",null,null,null,null,null,null,"ansTechnology","ansNoxLevel","ansEcoReceptor",null,null,null,null,null,null,null,null,null,null,null,null,"F.42 - Civil engineering","Central Bedfordshire Council"]
[null,null,"0-500",null,null,null,null,">= 15","Other Gaseous Fuel",">= 15 but < 20",null,null,null,null,null,null,"ansMCPType","ansStackHeight","ansHumanReceptor",null,null,null,null,null,null,null,null,null,null,null,null,"F.43 - Specialised construction activities","Charnwood Borough Council"]
[null,null,null,null,null,null,null,null,null,null,null,null,null,null,null,null,"ansAQMAYesNo","ansFuel",null,null,null,null,null,null,null,null,null,null,null,null,null,"G.45 - Wholesale and retail trade and repair of motor vehicles and motorcycles","Chelmsford City Council "]
[null,null,null,null,null,null,null,null,null,null,null,null,null,null,null,null,"ansMaxExistPlantSize",null,null,null,null,null,null,null,null,null,null,null,null,null,null,"G.46 - Wholesale trade, except of motor vehicles and motorcycles","Cherwell District Council"]
[null,null,null,null,null,null,null,null,null,10,11,12,13,14,15,16,"ansMaxNewPlantSize",null,null,null,null,null,null,null,null,null,null,null,null,null,null,"G.47 - Retail trade, except of motor vehicles and motorcycles","Cheshire East Council"]
["Text Comparisons",null,null,null,null,null,null,null,null,"Numeric Comparisons",null,null,null,null,null,null,"Rules",null,null,null,null,null,null,null,null,null,null,null,null,null,null,"H.49 - Land transport and transport via pipelines","Cheshire West and Chester Council"]
["Grp","FixedMob","Technology","MCPType","AQMAYesNo","MaxExistPlantSize","MaxNewPlantSize","OpHours","NOxLevel","StackHeight","Fuel","MinThermal","MaxThermal","EcoReceptorNew","EcoReceptor","HumanReceptor","MaxExistPlantSize2","MaxNewPlantSize3","Ruleset","Inc",null,"Plant Details",null,null,"Secondary Fuel Usage",null,null,null,null,null,null,"H.50 - Water transport","Chesterfield Borough Council"]
["SR2018 No 1","Fixed","Engine/Turbine","Generator(s)","No",null,null,null,"<= 31",">= 3 but < 15, >= 15","Natural Gas, Biogas",0,2,400,400,100,null,null,"SR2018 No 1",0,null,"Technology",{"$f":"Technology","v":0},null,"Back-up",null,null,null,null,null,null,"H.51 - Air transport","Chichester District Council"]
["SR2018 No 1","Fixed","Engine/Turbine","Generator(s)","No",null,null,null,"<= 31",">= 3 but < 15, >= 15","Natural Gas, Biogas",2,5,600,600,150,null,null,"SR2018 No 1",0,null,"Main Fuel",{"$f":"Fuel","v":0},null,"Co-firing",null,null,null,null,null,null,"H.52 - Warehousing and support activities for transportation","Chiltern District Council"]
["SR2018 No 2","Fixed",null,"Generator(s)","No",null,null,null,"> 31 but < 36, <= 31",">= 15","Natural Gas",0,2,500,500,null,null,null,"SR2018 No 2",0,null,"Tot Size MW",{"$f":"SizeMW","v":3.2},null,"Both",null,null,null,null,null,null,"H.52 - Warehousing and support activities for transportation","Chiltern District Council"]
["SR2018 No 3","Fixed",null,"Generator(s)","Yes",null,null,null,">= 36,> 31 but < 36, <= 31",">= 15","Natural Gas",0,2,300,300,null,null,null,"SR2018 No 3",0,null,"Stack Height",{"$f":"StackHeight","v":3},null,null,null,null,null,null,null,null,"H.53 - Postal and courier activities","Chorley Borough Council"]
["SR2018 No 3","Fixed",null,"Generator(s)","No",null,null,null,">= 36",">= 15","Natural Gas",0,2,300,300,null,null,null,"SR2018 No 3",0,null,"HumanReceptor",{"$f":"HumanReceptor","v":580},null,null,null,null,null,null,null,null,"H.53 - Postal and courier activities","Chorley Borough Council"]
["SR2018 No 4","Fixed",null,"Generator(s)","No",null,null,"0-500","<= 31",">= 3 but < 15, >= 15","Natural Gas, Gas Oil",0,20,600,600,150,null,null,"SR2018 No 4",0,null,"EcoReceptor",{"$f":"EcoReceptor","v":2700},null,null,null,null,null,null,null,null,"H.53 - Postal and courier activities","Chorley Borough Council"]
["SR2018 No 5","Fixed",null,"Generator(s)","No",null,null,"0-500","<= 31",">= 3 but < 15, >= 15","Natural Gas, Gas Oil",0,20,600,600,150,null,null,"SR2018 No 5",0,null,"BG NO2",{"$f":"BackgroundNO2","v":29},null,null,null,null,null,null,null,null,"I.55 - Accommodation","Christchurch Borough Council"]
["SR2018 No 5","Fixed",null,"Generator(s)","No",null,null,">500-1500","<= 31",">= 3 but < 15, >= 15","Natural Gas, Gas Oil",0,20,600,600,150,null,null,"SR2018 No 5",0,null,"AQMA",{"$f":"AQMA","v":"No"},null,null,null,null,null,null,null,null,"I.56 - Food and beverage service activities","City of Bradford Metropolitan District Council"]
["SR2018 No 6","Fixed",null,"Generator(s)","No",null,null,">1500-7000","> 31 but < 36, <= 31",">= 15","Natural Gas",0,1.3,500,500,null,null,null,"SR2018 No 6",0,null,"Annual Hrs",{"$f":"AnnualHours","v":5000},null,null,null,null,null,null,null,null,"J.58 - Publishing activities","City of London"]
["SR2018 No 6","Fixed",null,"Generator(s)","No",null,null,"0-500","> 31 but < 36, <= 31",">= 15","Natural Gas",0,1.3,500,500,null,null,null,"SR2018 No 6",0,null,"Mobile",{"$f":"MobilePlant","v":"No"},null,null,null,null,null,null,null,null,"J.59 - Motion picture, video and television programme production, sound","City of York Council"]
["SR2018 No 6","Fixed",null,"Generator(s)","No",null,null,">500-1500","> 31 but < 36, <= 31",">= 15","Natural Gas",0,1.3,500,500,null,null,null,"SR2018 No 6",0,null,"All ove 1MW",{"$f":"AllOver1","v":true},null,null,null,null,null,null,null,null,"J.60 - Programming and broadcasting activities","Colchester Borough Council"]
["SR2018 No 7","Fixed","Boiler","MCP Only",null,null,null,null,null,null,"Gas Oil",0.999,50,800,800,null,null,null,"SR2018 No 7",0,null,null,null,null,null,null,null,null,null,null,null,"J.61 - Telecommunications","Congleton Borough Council"]
["SR2018 No 7","Fixed","Boiler","MCP Only",null,null,null,null,null,null,"Natural Gas",0.999,50,500,800,null,null,null,"SR2018 No 7",1,null,null,null,null,null,null,null,null,null,null,null,"J.62 - Computer programming, consultancy and related activities","Conwy County Borough Council"]
["SR2018 No 7","Fixed","Boiler","MCP Only",null,null,null,null,null,null,"Other Gaseous Fuel",0.999,50,1700,1800,null,null,null,"SR2018 No 7",0,null,null,null,null,null,null,null,null,null,null,null,"J.63 - Information service activities","Copeland Borough Council"]
["SR2018 No 7","Fixed","Boiler","MCP Only",null,null,null,null,null,null,"Biogas",0.999,50,3000,4000,null,null,null,"SR2018 No 7",0,null,null,null,null,null,null,null,null,null,null,null,"K.64 - Financial service activities, except insurance and pension funding","Corby Borough Council"]
["SR2018 No 7","Fixed","Engine/Turbine","MCP Only",null,null,null,null,null,null,"Gas Oil",0.999,50,1500,1500,null,null,null,"SR2018 No 7",0,null,null,null,null,null,null,null,null,null,null,null,"K.65 - Insurance, reinsurance and pension funding, except compulsory social security","Cornwall Council"]
["SR2018 No 7","Fixed","Engine/Turbine","MCP Only",null,null,null,null,null,null,"Natural Gas",0.999,50,1000,1600,null,null,null,"SR2018 No 7",0,null,null,null,null,null,null,null,null,null,null,null,"K.66 - Activities auxiliary to financial services and insurance activities","Cotswold District Council"]
["SR2018 No 7","Fixed","Engine/Turbine","MCP Only",null,null,null,null,null,null,"Other Gaseous Fuel",0.999,50,2500,2500,null,null,null,"SR2018 No 7",0,null,null,null,null,null,null,null,null,null,null,null,"L.68 - Real estate activities","Council of The Isles of Scilly"]
["SR2018 No 7","Fixed","Engine/Turbine","MCP Only",null,null,null,null,null,null,"Biogas",0.999,50,4000,5000,null,null,null,"SR2018 No 7",0,null,null,null,null,null,null,null,null,null,null,null,"M.69 - Legal and accounting activities","Coventry City Council"]
["SR2018 No 7","Fixed","Engine (50h/yr limit)","MCP Only",null,null,null,null,null,null,"Gas Oil",0.999,50,250,250,null,null,null,"SR2018 No 7",0,null,null,null,null,null,null,null,null,null,null,null,"M.70 - Activities of head offices; management consultancy activities","Craven District Council"]
["SR2018 No 7","Fixed","Engine (50h/yr limit)","MCP Only",null,null,null,null,null,null,"Natural Gas",0.999,50,100,100,null,null,null,"SR2018 No 7",0,null,null,null,null,null,null,null,null,null,null,null,"M.71 - Architectural and engineering activities; technical testing and analysis","Crawley Borough Council"]
["SR2018 No 7","Fixed","Engine (50h/yr limit)","MCP Only",null,null,null,null,null,null,"Other Gaseous Fuel",0.999,50,150,150,null,null,null,"SR2018 No 7",0,null,null,null,null,null,null,null,null,null,null,null,"M.71 - Architectural and engineering activities; technical testing and analysis","Crawley Borough Council"]
["SR2018 No 7","Fixed","Engine (50h/yr limit)","MCP Only",null,null,null,null,null,null,"Biogas",0.999,50,150,200,null,null,null,"SR2018 No 7",0,null,null,null,null,null,null,null,null,null,null,null,"M.72 - Scientific research and development","Cumbria County Council"]
["SR2018 No 8","Mobile",null,"Generator(s)","No",null,null,"0-500","<= 31",">= 2 but < 3, >= 3 but < 15, >= 15","Gas Oil",0,2,100,100,null,null,null,"SR2018 No 8",0,null,null,null,null,null,null,null,null,null,null,null,"M.74 - Other professional, scientific and technical activities","Darlington Borough Council"]
["SR2018 No 8","Mobile",null,"Generator(s)","No",null,null,">500-1500","<= 31",">= 2 but < 3, >= 3 but < 15, >= 15","Gas Oil",0,2,200,200,100,null,null,"SR2018 No 8",0,null,null,null,null,null,null,null,null,null,null,null,"M.75 - Veterinary activities","Dartford Borough Council"]
["SR2018 No 8","Mobile",null,"Generator(s)","No",null,null,">1500-7000","<= 31",">= 2 but < 3, >= 3 but < 15, >= 15","Gas Oil",0,2,600,600,250,null,null,"SR2018 No 8",0,null,null,null,null,null,null,null,null,null,null,null,"N.77 - Rental and leasing activities","Daventry District Council"]
["SR2018 No 8","Mobile",null,"Generator(s)","No",null,null,">7000 (24/7)","<= 31",">= 2 but < 3, >= 3 but < 15, >= 15","Gas Oil",0,2,600,600,250,null,null,"SR2018 No 8",0,null,null,null,null,null,null,null,null,null,null,null,"N.78 - Employment activities","Derby City Council"]
["SR2018 No 9","Fixed",null,"Generator(s)",null,null,null,">1500-7000",null,">= 15","Natural Gas",0,0.9,500,500,null,null,null,"SR2018 No 9",0,null,null,null,null,null,null,null,null,null,null,null,"N.79 - Travel agency, tour operator reservation service and related activities","Derbyshire County Council"]
["SR2022 No 9","Fixed","Boiler","MCP Only",null,null,">= 1 but < 5",null,null,null,"Natural Gas",0.999,50,300,600,null,null,null,"SR2022 No 9",0,null,300,null,null,null,null,null,null,null,null,null,"N.80 - Security and investigation activities","Derbyshire Dales District Council"]
["SR2022 No 9","Fixed","Boiler","MCP Only",null,null,">= 5 but < 10",null,null,null,"Natural Gas",0.999,50,400,600,null,null,null,"SR2022 No 9",0,null,400,null,null,null,null,null,null,null,null,null,"N.81 - Services to buildings and landscape activities","Devon County Council"]
["SR2022 No 9","Fixed","Boiler","MCP Only",null,null,">= 10 but < 15",null,null,null,"Natural Gas",0.999,50,450,700,null,null,null,"SR2022 No 9",0,null,450,null,null,null,null,null,null,null,null,null,"N.82 - Office administrative, office support and other business support activities","Devon County Council (see comment)"]
["SR2022 No 9","Fixed","Boiler","MCP Only",null,null,">= 15 but < 20",null,null,null,"Natural Gas",0.999,50,500,800,null,null,null,"SR2022 No 9",0,null,500,null,null,null,null,null,null,null,null,null,"O.84 - Public administration and defence; compulsory social security","Doncaster Metropolitan Borough Council"]
["SR2022 No 9","Fixed","Boiler","MCP Only",null,">= 5 but < 10",">= 1 but < 5",null,null,null,"Natural Gas",0.999,50,300,600,null,null,null,"SR2022 No 9",0,null,null,null,null,null,null,null,null,null,null,null,"O.93 - Other service activities","Dorset County Council"]
["SR2022 No 9","Fixed","Boiler","MCP Only",null,">= 5 but < 10",">= 5 but < 10",null,null,null,"Natural Gas",0.999,50,400,600,null,null,null,"SR2022 No 9",0,null,null,null,null,null,null,null,null,null,null,null,"P.85 - Education","Dover District Council"]
["SR2022 No 9","Fixed","Boiler","MCP Only",null,">= 5 but < 10",">= 10 but < 15",null,null,null,"Natural Gas",0.999,50,450,600,null,null,null,"SR2022 No 9",0,null,null,null,null,null,null,null,null,null,null,null,"Q.86 - Human health activities","Dudley Metropolitan Borough Council"]
["SR2022 No 9","Fixed","Boiler","MCP Only",null,">= 5 but < 10",">= 15 but < 20",null,null,null,"Natural Gas",0.999,50,500,600,null,null,null,"SR2022 No 9",0,null,null,null,null,null,null,null,null,null,null,null,"Q.87 - Residential care activities","Durham County Council"]
["SR2022 No 9","Fixed","Boiler","MCP Only",null,">= 10 but < 15",">= 1 but < 5",null,null,null,"Natural Gas",0.999,50,300,700,null,null,null,"SR2022 No 9",0,null,null,null,null,null,null,null,null,null,null,null,"Q.88 - Social work activities without accommodation","East Cambridgeshire District Council"]
["SR2022 No 9","Fixed","Boiler","MCP Only",null,">= 10 but < 15",">= 5 but < 10",null,null,null,"Natural Gas",0.999,50,400,700,null,null,null,"SR2022 No 9",0,null,null,null,null,null,null,null,null,null,null,null,"R.90 - Creative, arts and entertainment activities","East Devon District Council"]
["SR2022 No 9","Fixed","Boiler","MCP Only",null,">= 10 but < 15",">= 10 but < 15",null,null,null,"Natural Gas",0.999,50,450,700,null,null,null,"SR2022 No 9",0,null,null,null,null,null,null,null,null,null,null,null,"R.91 - Libraries, archives, museums and other cultural activities","East Dorset District Council"]
["SR2022 No 9","Fixed","Boiler","MCP Only",null,">= 10 but < 15",">= 15 but < 20",null,null,null,"Natural Gas",0.999,50,500,700,null,null,null,"SR2022 No 9",0,null,null,null,null,null,null,null,null,null,null,null,"R.92 - Gambling and betting activities","East Hampshire District Council"]
["SR2022 No 9","Fixed","Boiler","MCP Only",null,">= 15 but < 20",">= 1 but < 5",null,null,null,"Natural Gas",0.999,50,300,800,null,null,null,"SR2022 No 9",0,null,null,null,null,null,null,null,null,null,null,null,"R.93 - Sports activities and amusement and recreation activities","East Hertfordshire District Council"]
["SR2022 No 9","Fixed","Boiler","MCP Only",null,">= 15 but < 20",">= 5 but < 10",null,null,null,"Natural Gas",0.999,50,400,800,null,null,null,"SR2022 No 9",0,null,null,null,null,null,null,null,null,null,null,null,"S.94 - Activities of membership organisations","East Lindsey District Council"]
["SR2022 No 9","Fixed","Boiler","MCP Only",null,">= 15 but < 20",">= 10 but < 15",null,null,null,"Natural Gas",0.999,50,450,800,null,null,null,"SR2022 No 9",0,null,null,null,null,null,null,null,null,null,null,null,"S.95 - Repair of computers and personal and household goods","East Northamptonshire Council"]
["SR2022 No 9","Fixed","Boiler","MCP Only",null,">= 15 but < 20",">= 15 but < 20",null,null,null,"Natural Gas",0.999,50,500,800,null,null,null,"SR2022 No 9",0,null,null,null,null,null,null,null,null,null,null,null,"S.96 - Other personal service activities","East Riding of Yorkshire Council"]
["SR2022 No 9","Fixed","Boiler","MCP Only",null,">= 5 but < 10",null,null,null,null,"Natural Gas",0.999,50,600,600,null,null,null,"SR2022 No 9",0,null,null,null,null,null,null,null,null,null,null,null,"T.97 - Activities of households as employers of domestic personnel","East Staffordshire Borough Council"]
["SR2022 No 9","Fixed","Boiler","MCP Only",null,">= 10 but < 15",null,null,null,null,"Natural Gas",0.999,50,700,700,null,null,null,"SR2022 No 9",0,null,null,null,null,null,null,null,null,null,null,null,"T.98 - Undifferentiated goods- and services-producing activities of private households for own use","East Sussex County Council"]
["SR2022 No 9","Fixed","Boiler","MCP Only",null,">= 15 but < 20",null,null,null,null,"Natural Gas",0.999,50,800,800,null,null,null,"SR2022 No 9",0,null,null,null,null,null,null,null,null,null,null,null,"U.99 - Activities of extraterritorial organisations and bodies","Eastbourne Borough Council"]
[null,null,null,null,null,null,null,null,null,null,null,null,null,null,null,null,null,null,null,null,null,null,null,null,null,null,null,null,null,null,null,null,"Eastleigh Borough Council"]
[null,null,null,null,null,null,null,null,null,null,null,null,null,null,null,null,null,null,null,null,null,null,null,null,null,null,null,null,null,null,null,null,"Eden District Council"]
["Application Contact",null,null,null,null,null,null,null,null,null,null,null,null,null,null,null,null,null,null,null,null,null,null,null,null,null,null,null,null,null,null,null,"Ellesmere Port & Neston Borough Council"]
["Operational Contact",null,null,null,null,null,null,null,null,null,null,null,null,"Ruleset","Inc",null,null,null,null,null,null,null,null,null,null,null,null,null,null,null,null,null,"Elmbridge Borough Council"]
[null,null,null,null,null,null,null,null,null,null,null,null,null,null,1,null,null,null,null,null,null,null,null,null,null,null,null,null,null,null,null,null,"Epping Forest District Council"]
["Copy Registered Office Address",null,null,null,null,null,null,null,null,null,null,null,null,null,null,null,null,null,null,null,null,null,null,null,null,null,null,null,null,null,null,null,"Epsom & Ewell Borough Council"]
["Copy UK Business Addresss",null,null,null,null,null,null,null,null,null,null,null,null,"Ruleset","Inc",null,null,null,null,null,null,null,null,null,null,null,null,null,null,null,null,null,"Erewash Borough Council"]
[null,null,null,null,null,null,null,null,null,null,null,null,null,"SR2018 No 1",1,null,null,null,null,null,null,null,null,null,null,null,null,null,null,null,null,null,"Essex County Council"]
[null,null,null,null,null,null,null,null,null,null,null,null,null,"SR2018 No 2",1,null,null,null,null,null,null,null,null,null,null,null,null,null,null,null,null,null,"Exeter City Council"]
[null,null,null,null,null,null,null,null,null,null,null,null,null,"SR2018 No 3",1,null,null,null,null,null,null,null,null,null,null,null,null,null,null,null,null,null,"Fareham Borough Council"]
[null,null,null,null,null,null,null,null,null,null,null,null,null,"SR2018 No 4",1,null,null,null,null,null,null,null,null,null,null,null,null,null,null,null,null,null,"Fenland District Council"]
[null,null,null,null,null,null,null,null,null,null,null,null,null,"SR2018 No 5",1,null,null,null,null,null,null,null,null,null,null,null,null,null,null,null,null,null,"Flintshire County Council"]
[null,null,null,null,null,null,null,null,null,null,null,null,null,"SR2018 No 6",1,null,null,null,null,null,null,null,null,null,null,null,null,null,null,null,null,null,"Forest Heath District Council"]
[null,null,null,null,null,null,null,null,null,null,null,null,null,"SR2018 No 7",1,null,null,null,null,null,null,null,null,null,null,null,null,null,null,null,null,null,"Forest of Dean District Council"]
[null,null,null,null,null,null,null,null,null,null,null,null,null,"SR2018 No 8",1,null,null,null,null,null,null,null,null,null,null,null,null,null,null,null,null,null,"Fylde Borough Council"]
[null,null,null,null,null,null,null,null,null,null,null,null,null,"SR2018 No 9",1,null,null,null,null,null,null,null,null,null,null,null,null,null,null,null,null,null,"Gateshead  Council"]
[null,null,null,null,null,null,null,null,null,null,null,null,null,"SR2022 No 9",1,null,null,null,null,null,null,null,null,null,null,null,null,null,null,null,null,null,"Gedling Borough Council"]
[null,null,null,null,null,null,null,null,null,null,null,null,null,null,null,null,null,null,null,null,null,null,null,null,null,null,null,null,null,null,null,null,"Gloucester City Council"]
[null,null,null,null,null,null,null,null,null,null,null,null,null,null,null,null,null,null,null,null,null,null,null,null,null,null,null,null,null,null,null,null,"Gloucestershire County Council"]
[null,null,null,null,null,null,null,null,null,null,null,null,null,null,null,null,null,null,null,null,null,null,null,null,null,null,null,null,null,null,null,null,"Gosport Borough Council"]
[null,null,null,null,null,null,null,null,null,null,null,null,null,null,null,null,null,null,null,null,null,null,null,null,null,null,null,null,null,null,null,null,"Gravesham Borough Council"]
[null,null,null,null,null,null,null,null,null,null,null,null,null,null,null,null,null,null,null,null,null,null,null,null,null,null,null,null,null,null,null,null,"Great Yarmouth Borough Council"]
[null,null,null,null,null,null,null,null,null,null,null,null,null,null,null,null,null,null,null,null,null,null,null,null,null,null,null,null,null,null,null,null,"Greater London Authority"]
[null,null,null,null,null,null,null,null,null,null,null,null,null,null,null,null,null,null,null,null,null,null,null,null,null,null,null,null,null,null,null,null,"Guildford Borough Council"]
[null,null,null,null,null,null,null,null,null,null,null,null,null,null,null,null,null,null,null,null,null,null,null,null,null,null,null,null,null,null,null,null,"Halton Borough Council "]
[null,null,null,null,null,null,null,null,null,null,null,null,null,null,null,null,null,null,null,null,null,null,null,null,null,null,null,null,null,null,null,null,"Hambleton District Council"]
[null,null,null,null,null,null,null,null,null,null,null,null,null,null,null,null,null,null,null,null,null,null,null,null,null,null,null,null,null,null,null,null,"Hampshire County Council"]
[null,null,null,null,null,null,null,null,null,null,null,null,null,null,null,null,null,null,null,null,null,null,null,null,null,null,null,null,null,null,null,null,"Harborough District Council"]
[null,null,null,null,null,null,null,null,null,null,null,null,null,null,null,null,null,null,null,null,null,null,null,null,null,null,null,null,null,null,null,null,"Harlow District Council"]
[null,null,null,null,null,null,null,null,null,null,null,null,null,null,null,null,null,null,null,null,null,null,null,null,null,null,null,null,null,null,null,null,"Harrogate Borough Council"]
[null,null,null,null,null,null,null,null,null,null,null,null,null,null,null,null,null,null,null,null,null,null,null,null,null,null,null,null,null,null,null,null,"Hart District Council"]
[null,null,null,null,null,null,null,null,null,null,null,null,null,null,null,null,null,null,null,null,null,null,null,null,null,null,null,null,null,null,null,null,"Hartlepool Borough Council"]
[null,null,null,null,null,null,null,null,null,null,null,null,null,null,null,null,null,null,null,null,null,null,null,null,null,null,null,null,null,null,null,null,"Hastings Borough Council"]
[null,null,null,null,null,null,null,null,null,null,null,null,null,null,null,null,null,null,null,null,null,null,null,null,null,null,null,null,null,null,null,null,"Havant Borough Council"]
[null,null,null,null,null,null,null,null,null,null,null,null,null,null,null,null,null,null,null,null,null,null,null,null,null,null,null,null,null,null,null,null,"Herefordshire Council"]
[null,null,null,null,null,null,null,null,null,null,null,null,null,null,null,null,null,null,null,null,null,null,null,null,null,null,null,null,null,null,null,null,"Hertfordshire County Council"]
[null,null,null,null,null,null,null,null,null,null,null,null,null,null,null,null,null,null,null,null,null,null,null,null,null,null,null,null,null,null,null,null,"Hertsmere Borough Council"]
[null,null,null,null,null,null,null,null,null,null,null,null,null,null,null,null,null,null,null,null,null,null,null,null,null,null,null,null,null,null,null,null,"High Peak Borough Council"]
[null,null,null,null,null,null,null,null,null,null,null,null,null,null,null,null,null,null,null,null,null,null,null,null,null,null,null,null,null,null,null,null,"Hinckley & Bosworth Borough Council"]
[null,null,null,null,null,null,null,null,null,null,null,null,null,null,null,null,null,null,null,null,null,null,null,null,null,null,null,null,null,null,null,null,"Horsham District Council"]
[null,null,null,null,null,null,null,null,null,null,null,null,null,null,null,null,null,null,null,null,null,null,null,null,null,null,null,null,null,null,null,null,"Huntingdonshire District Council"]
[null,null,null,null,null,null,null,null,null,null,null,null,null,null,null,null,null,null,null,null,null,null,null,null,null,null,null,null,null,null,null,null,"Hyndburn Borough Council"]
[null,null,null,null,null,null,null,null,null,null,null,null,null,null,null,null,null,null,null,null,null,null,null,null,null,null,null,null,null,null,null,null,"Ipswich Borough Council"]
[null,null,null,null,null,null,null,null,null,null,null,null,null,null,null,null,null,null,null,null,null,null,null,null,null,null,null,null,null,null,null,null,"Isle of Scilly Council"]
[null,null,null,null,null,null,null,null,null,null,null,null,null,null,null,null,null,null,null,null,null,null,null,null,null,null,null,null,null,null,null,null,"Isle of Wight Council"]
[null,null,null,null,null,null,null,null,null,null,null,null,null,null,null,null,null,null,null,null,null,null,null,null,null,null,null,null,null,null,null,null,"Kensington and Chelsea Royal Borough Council"]
[null,null,null,null,null,null,null,null,null,null,null,null,null,null,null,null,null,null,null,null,null,null,null,null,null,null,null,null,null,null,null,null,"Kent County Council"]
[null,null,null,null,null,null,null,null,null,null,null,null,null,null,null,null,null,null,null,null,null,null,null,null,null,null,null,null,null,null,null,null,"Kettering Borough Council"]
[null,null,null,null,null,null,null,null,null,null,null,null,null,null,null,null,null,null,null,null,null,null,null,null,null,null,null,null,null,null,null,null,"King's Lynn & West Norfolk Borough Council"]
[null,null,null,null,null,null,null,null,null,null,null,null,null,null,null,null,null,null,null,null,null,null,null,null,null,null,null,null,null,null,null,null,"Kingston upon Hull City Council"]
[null,null,null,null,null,null,null,null,null,null,null,null,null,null,null,null,null,null,null,null,null,null,null,null,null,null,null,null,null,null,null,null,"Kirklees Council"]
[null,null,null,null,null,null,null,null,null,null,null,null,null,null,null,null,null,null,null,null,null,null,null,null,null,null,null,null,null,null,null,null,"Knowsley Metropolitan Borough Council"]
[null,null,null,null,null,null,null,null,null,null,null,null,null,null,null,null,null,null,null,null,null,null,null,null,null,null,null,null,null,null,null,null,"Lancashire County Council"]
[null,null,null,null,null,null,null,null,null,null,null,null,null,null,null,null,null,null,null,null,null,null,null,null,null,null,null,null,null,null,null,null,"Lancaster City Council"]
[null,null,null,null,null,null,null,null,null,null,null,null,null,null,null,null,null,null,null,null,null,null,null,null,null,null,null,null,null,null,null,null,"Leeds City Council"]
[null,null,null,null,null,null,null,null,null,null,null,null,null,null,null,null,null,null,null,null,null,null,null,null,null,null,null,null,null,null,null,null,"Leicester City Council"]
[null,null,null,null,null,null,null,null,null,null,null,null,null,null,null,null,null,null,null,null,null,null,null,null,null,null,null,null,null,null,null,null,"Leicestershire County Council"]
[null,null,null,null,null,null,null,null,null,null,null,null,null,null,null,null,null,null,null,null,null,null,null,null,null,null,null,null,null,null,null,null,"Lewes District Council"]
[null,null,null,null,null,null,null,null,null,null,null,null,null,null,null,null,null,null,null,null,null,null,null,null,null,null,null,null,null,null,null,null,"Lichfield District Council"]
[null,null,null,null,null,null,null,null,null,null,null,null,null,null,null,null,null,null,null,null,null,null,null,null,null,null,null,null,null,null,null,null,"Lincoln City Council"]
[null,null,null,null,null,null,null,null,null,null,null,null,null,null,null,null,null,null,null,null,null,null,null,null,null,null,null,null,null,null,null,null,"Lincolnshire County Council"]
[null,null,null,null,null,null,null,null,null,null,null,null,null,null,null,null,null,null,null,null,null,null,null,null,null,null,null,null,null,null,null,null,"Liverpool City Council"]
[null,null,null,null,null,null,null,null,null,null,null,null,null,null,null,null,null,null,null,null,null,null,null,null,null,null,null,null,null,null,null,null,"London Borough of Barking & Dagenham"]
[null,null,null,null,null,null,null,null,null,null,null,null,null,null,null,null,null,null,null,null,null,null,null,null,null,null,null,null,null,null,null,null,"London Borough of Barnet"]
[null,null,null,null,null,null,null,null,null,null,null,null,null,null,null,null,null,null,null,null,null,null,null,null,null,null,null,null,null,null,null,null,"London Borough of Bexley"]
[null,null,null,null,null,null,null,null,null,null,null,null,null,null,null,null,null,null,null,null,null,null,null,null,null,null,null,null,null,null,null,null,"London Borough of Brent Council"]
[null,null,null,null,null,null,null,null,null,null,null,null,null,null,null,null,null,null,null,null,null,null,null,null,null,null,null,null,null,null,null,null,"London Borough of Bromley"]
[null,null,null,null,null,null,null,null,null,null,null,null,null,null,null,null,null,null,null,null,null,null,null,null,null,null,null,null,null,null,null,null,"London Borough of Camden"]
[null,null,null,null,null,null,null,null,null,null,null,null,null,null,null,null,null,null,null,null,null,null,null,null,null,null,null,null,null,null,null,null,"London Borough of Croydon"]
[null,null,null,null,null,null,null,null,null,null,null,null,null,null,null,null,null,null,null,null,null,null,null,null,null,null,null,null,null,null,null,null,"London Borough of Ealing"]
[null,null,null,null,null,null,null,null,null,null,null,null,null,null,null,null,null,null,null,null,null,null,null,null,null,null,null,null,null,null,null,null,"London Borough of Enfield"]
[null,null,null,null,null,null,null,null,null,null,null,null,null,null,null,null,null,null,null,null,null,null,null,null,null,null,null,null,null,null,null,null,"London Borough of Greenwich"]
[null,null,null,null,null,null,null,null,null,null,null,null,null,null,null,null,null,null,null,null,null,null,null,null,null,null,null,null,null,null,null,null,"London Borough of Hackney"]
[null,null,null,null,null,null,null,null,null,null,null,null,null,null,null,null,null,null,null,null,null,null,null,null,null,null,null,null,null,null,null,null,"London Borough of Hammersmith & Fulham"]
[null,null,null,null,null,null,null,null,null,null,null,null,null,null,null,null,null,null,null,null,null,null,null,null,null,null,null,null,null,null,null,null,"London Borough of Hammersmith, Fulham, Royal Borough of Kensington and Chelsea"]
[null,null,null,null,null,null,null,null,null,null,null,null,null,null,null,null,null,null,null,null,null,null,null,null,null,null,null,null,null,null,null,null,"London Borough of Haringey"]
[null,null,null,null,null,null,null,null,null,null,null,null,null,null,null,null,null,null,null,null,null,null,null,null,null,null,null,null,null,null,null,null,"London Borough of Harrow"]
[null,null,null,null,null,null,null,null,null,null,null,null,null,null,null,null,null,null,null,null,null,null,null,null,null,null,null,null,null,null,null,null,"London Borough of Havering"]
[null,null,null,null,null,null,null,null,null,null,null,null,null,null,null,null,null,null,null,null,null,null,null,null,null,null,null,null,null,null,null,null,"London Borough of Hillingdon"]
[null,null,null,null,null,null,null,null,null,null,null,null,null,null,null,null,null,null,null,null,null,null,null,null,null,null,null,null,null,null,null,null,"London Borough of Hounslow"]
[null,null,null,null,null,null,null,null,null,null,null,null,null,null,null,null,null,null,null,null,null,null,null,null,null,null,null,null,null,null,null,null,"London Borough of Islington"]
[null,null,null,null,null,null,null,null,null,null,null,null,null,null,null,null,null,null,null,null,null,null,null,null,null,null,null,null,null,null,null,null,"London Borough of Lambeth"]
[null,null,null,null,null,null,null,null,null,null,null,null,null,null,null,null,null,null,null,null,null,null,null,null,null,null,null,null,null,null,null,null,"London Borough of Lewisham"]
[null,null,null,null,null,null,null,null,null,null,null,null,null,null,null,null,null,null,null,null,null,null,null,null,null,null,null,null,null,null,null,null,"London Borough of Merton"]
[null,null,null,null,null,null,null,null,null,null,null,null,null,null,null,null,null,null,null,null,null,null,null,null,null,null,null,null,null,null,null,null,"London Borough of Newham"]
[null,null,null,null,null,null,null,null,null,null,null,null,null,null,null,null,null,null,null,null,null,null,null,null,null,null,null,null,null,null,null,null,"London Borough of Redbridge"]
[null,null,null,null,null,null,null,null,null,null,null,null,null,null,null,null,null,null,null,null,null,null,null,null,null,null,null,null,null,null,null,null,"London Borough of Richmond upon Thames"]
[null,null,null,null,null,null,null,null,null,null,null,null,null,null,null,null,null,null,null,null,null,null,null,null,null,null,null,null,null,null,null,null,"London Borough of Southwark"]
[null,null,null,null,null,null,null,null,null,null,null,null,null,null,null,null,null,null,null,null,null,null,null,null,null,null,null,null,null,null,null,null,"London Borough of Sutton"]
[null,null,null,null,null,null,null,null,null,null,null,null,null,null,null,null,null,null,null,null,null,null,null,null,null,null,null,null,null,null,null,null,"London Borough of Tower Hamlets"]
[null,null,null,null,null,null,null,null,null,null,null,null,null,null,null,null,null,null,null,null,null,null,null,null,null,null,null,null,null,null,null,null,"London Borough of Waltham Forest"]
[null,null,null,null,null,null,null,null,null,null,null,null,null,null,null,null,null,null,null,null,null,null,null,null,null,null,null,null,null,null,null,null,"London Borough Of Wandsworth Council"]
[null,null,null,null,null,null,null,null,null,null,null,null,null,null,null,null,null,null,null,null,null,null,null,null,null,null,null,null,null,null,null,null,"Luton Borough Council"]
[null,null,null,null,null,null,null,null,null,null,null,null,null,null,null,null,null,null,null,null,null,null,null,null,null,null,null,null,null,null,null,null,"Maidstone Borough Council"]
[null,null,null,null,null,null,null,null,null,null,null,null,null,null,null,null,null,null,null,null,null,null,null,null,null,null,null,null,null,null,null,null,"Maldon District Council"]
[null,null,null,null,null,null,null,null,null,null,null,null,null,null,null,null,null,null,null,null,null,null,null,null,null,null,null,null,null,null,null,null,"Malvern Hills District Council"]
[null,null,null,null,null,null,null,null,null,null,null,null,null,null,null,null,null,null,null,null,null,null,null,null,null,null,null,null,null,null,null,null,"Manchester City Council"]
[null,null,null,null,null,null,null,null,null,null,null,null,null,null,null,null,null,null,null,null,null,null,null,null,null,null,null,null,null,null,null,null,"Mansfield District Council"]
[null,null,null,null,null,null,null,null,null,null,null,null,null,null,null,null,null,null,null,null,null,null,null,null,null,null,null,null,null,null,null,null,"Medway Council"]
[null,null,null,null,null,null,null,null,null,null,null,null,null,null,null,null,null,null,null,null,null,null,null,null,null,null,null,null,null,null,null,null,"Melton Borough Council"]
[null,null,null,null,null,null,null,null,null,null,null,null,null,null,null,null,null,null,null,null,null,null,null,null,null,null,null,null,null,null,null,null,"Mendip District Council"]
[null,null,null,null,null,null,null,null,null,null,null,null,null,null,null,null,null,null,null,null,null,null,null,null,null,null,null,null,null,null,null,null,"Mid Bedfordshire District Council"]
[null,null,null,null,null,null,null,null,null,null,null,null,null,null,null,null,null,null,null,null,null,null,null,null,null,null,null,null,null,null,null,null,"Mid Devon District Council"]
[null,null,null,null,null,null,null,null,null,null,null,null,null,null,null,null,null,null,null,null,null,null,null,null,null,null,null,null,null,null,null,null,"Mid Suffolk District Council"]
[null,null,null,null,null,null,null,null,null,null,null,null,null,null,null,null,null,null,null,null,null,null,null,null,null,null,null,null,null,null,null,null,"Mid Sussex District Council"]
[null,null,null,null,null,null,null,null,null,null,null,null,null,null,null,null,null,null,null,null,null,null,null,null,null,null,null,null,null,null,null,null,"Middlesborough Council"]
[null,null,null,null,null,null,null,null,null,null,null,null,null,null,null,null,null,null,null,null,null,null,null,null,null,null,null,null,null,null,null,null,"Milton Keynes Council"]
[null,null,null,null,null,null,null,null,null,null,null,null,null,null,null,null,null,null,null,null,null,null,null,null,null,null,null,null,null,null,null,null,"Mole Valley District Council"]
[null,null,null,null,null,null,null,null,null,null,null,null,null,null,null,null,null,null,null,null,null,null,null,null,null,null,null,null,null,null,null,null,"Monmouthshire County Council"]
[null,null,null,null,null,null,null,null,null,null,null,null,null,null,null,null,null,null,null,null,null,null,null,null,null,null,null,null,null,null,null,null,"New Forest District Council"]
[null,null,null,null,null,null,null,null,null,null,null,null,null,null,null,null,null,null,null,null,null,null,null,null,null,null,null,null,null,null,null,null,"Newark & Sherwood District Council "]
[null,null,null,null,null,null,null,null,null,null,null,null,null,null,null,null,null,null,null,null,null,null,null,null,null,null,null,null,null,null,null,null,"Newcastle City Council"]
[null,null,null,null,null,null,null,null,null,null,null,null,null,null,null,null,null,null,null,null,null,null,null,null,null,null,null,null,null,null,null,null,"Newcastle-under-Lyme Borough Council"]
[null,null,null,null,null,null,null,null,null,null,null,null,null,null,null,null,null,null,null,null,null,null,null,null,null,null,null,null,null,null,null,null,"Norfolk County Council"]
[null,null,null,null,null,null,null,null,null,null,null,null,null,null,null,null,null,null,null,null,null,null,null,null,null,null,null,null,null,null,null,null,"North Devon District Council"]
[null,null,null,null,null,null,null,null,null,null,null,null,null,null,null,null,null,null,null,null,null,null,null,null,null,null,null,null,null,null,null,null,"North Dorset District Council"]
[null,null,null,null,null,null,null,null,null,null,null,null,null,null,null,null,null,null,null,null,null,null,null,null,null,null,null,null,null,null,null,null,"North East Derbyshire District Council"]
[null,null,null,null,null,null,null,null,null,null,null,null,null,null,null,null,null,null,null,null,null,null,null,null,null,null,null,null,null,null,null,null,"North East Lincolnshire Council"]
[null,null,null,null,null,null,null,null,null,null,null,null,null,null,null,null,null,null,null,null,null,null,null,null,null,null,null,null,null,null,null,null,"North Hertfordshire District Council"]
[null,null,null,null,null,null,null,null,null,null,null,null,null,null,null,null,null,null,null,null,null,null,null,null,null,null,null,null,null,null,null,null,"North Kesteven District Council"]
[null,null,null,null,null,null,null,null,null,null,null,null,null,null,null,null,null,null,null,null,null,null,null,null,null,null,null,null,null,null,null,null,"North Lincolnshire Council"]
[null,null,null,null,null,null,null,null,null,null,null,null,null,null,null,null,null,null,null,null,null,null,null,null,null,null,null,null,null,null,null,null,"North Norfolk District Council"]
[null,null,null,null,null,null,null,null,null,null,null,null,null,null,null,null,null,null,null,null,null,null,null,null,null,null,null,null,null,null,null,null,"North Somerset Council"]
[null,null,null,null,null,null,null,null,null,null,null,null,null,null,null,null,null,null,null,null,null,null,null,null,null,null,null,null,null,null,null,null,"North Tynedale Council"]
[null,null,null,null,null,null,null,null,null,null,null,null,null,null,null,null,null,null,null,null,null,null,null,null,null,null,null,null,null,null,null,null,"North Tyneside Council"]
[null,null,null,null,null,null,null,null,null,null,null,null,null,null,null,null,null,null,null,null,null,null,null,null,null,null,null,null,null,null,null,null,"North Warwickshire Borough Council"]
[null,null,null,null,null,null,null,null,null,null,null,null,null,null,null,null,null,null,null,null,null,null,null,null,null,null,null,null,null,null,null,null,"North West Leicestershire District Council"]
[null,null,null,null,null,null,null,null,null,null,null,null,null,null,null,null,null,null,null,null,null,null,null,null,null,null,null,null,null,null,null,null,"North Yorkshire County Council"]
[null,null,null,null,null,null,null,null,null,null,null,null,null,null,null,null,null,null,null,null,null,null,null,null,null,null,null,null,null,null,null,null,"Northampton Borough Council"]
[null,null,null,null,null,null,null,null,null,null,null,null,null,null,null,null,null,null,null,null,null,null,null,null,null,null,null,null,null,null,null,null,"Northamptonshire County Council"]
[null,null,null,null,null,null,null,null,null,null,null,null,null,null,null,null,null,null,null,null,null,null,null,null,null,null,null,null,null,null,null,null,"Northumberland County Council"]
[null,null,null,null,null,null,null,null,null,null,null,null,null,null,null,null,null,null,null,null,null,null,null,null,null,null,null,null,null,null,null,null,"Norwich City Council"]
[null,null,null,null,null,null,null,null,null,null,null,null,null,null,null,null,null,null,null,null,null,null,null,null,null,null,null,null,null,null,null,null,"Nottingham City Council"]
[null,null,null,null,null,null,null,null,null,null,null,null,null,null,null,null,null,null,null,null,null,null,null,null,null,null,null,null,null,null,null,null,"Nottinghamshire County Council"]
[null,null,null,null,null,null,null,null,null,null,null,null,null,null,null,null,null,null,null,null,null,null,null,null,null,null,null,null,null,null,null,null,"Nuneaton & Bedworth Borough Council"]
[null,null,null,null,null,null,null,null,null,null,null,null,null,null,null,null,null,null,null,null,null,null,null,null,null,null,null,null,null,null,null,null,"Oadby & Wigston Borough Council"]
[null,null,null,null,null,null,null,null,null,null,null,null,null,null,null,null,null,null,null,null,null,null,null,null,null,null,null,null,null,null,null,null,"Oldham Council"]
[null,null,null,null,null,null,null,null,null,null,null,null,null,null,null,null,null,null,null,null,null,null,null,null,null,null,null,null,null,null,null,null,"Oxford City Council"]
[null,null,null,null,null,null,null,null,null,null,null,null,null,null,null,null,null,null,null,null,null,null,null,null,null,null,null,null,null,null,null,null,"Oxfordshire County Council"]
[null,null,null,null,null,null,null,null,null,null,null,null,null,null,null,null,null,null,null,null,null,null,null,null,null,null,null,null,null,null,null,null,"Pendle Borough Council"]
[null,null,null,null,null,null,null,null,null,null,null,null,null,null,null,null,null,null,null,null,null,null,null,null,null,null,null,null,null,null,null,null,"Penwith District Council"]
[null,null,null,null,null,null,null,null,null,null,null,null,null,null,null,null,null,null,null,null,null,null,null,null,null,null,null,null,null,null,null,null,"Peterborough City Council"]
[null,null,null,null,null,null,null,null,null,null,null,null,null,null,null,null,null,null,null,null,null,null,null,null,null,null,null,null,null,null,null,null,"Plymouth City Council"]
[null,null,null,null,null,null,null,null,null,null,null,null,null,null,null,null,null,null,null,null,null,null,null,null,null,null,null,null,null,null,null,null,"Portsmouth City Council"]
[null,null,null,null,null,null,null,null,null,null,null,null,null,null,null,null,null,null,null,null,null,null,null,null,null,null,null,null,null,null,null,null,"Preston City Council"]
[null,null,null,null,null,null,null,null,null,null,null,null,null,null,null,null,null,null,null,null,null,null,null,null,null,null,null,null,null,null,null,null,"Purbeck District Council"]
[null,null,null,null,null,null,null,null,null,null,null,null,null,null,null,null,null,null,null,null,null,null,null,null,null,null,null,null,null,null,null,null,"Reading Borough Council"]
[null,null,null,null,null,null,null,null,null,null,null,null,null,null,null,null,null,null,null,null,null,null,null,null,null,null,null,null,null,null,null,null,"Redcar & Cleveland Borough Council"]
[null,null,null,null,null,null,null,null,null,null,null,null,null,null,null,null,null,null,null,null,null,null,null,null,null,null,null,null,null,null,null,null,"Redditch Borough Council"]
[null,null,null,null,null,null,null,null,null,null,null,null,null,null,null,null,null,null,null,null,null,null,null,null,null,null,null,null,null,null,null,null,"Reigate & Banstead Borough Council"]
[null,null,null,null,null,null,null,null,null,null,null,null,null,null,null,null,null,null,null,null,null,null,null,null,null,null,null,null,null,null,null,null,"Rhondda Cynon Taff County Borough Council"]
[null,null,null,null,null,null,null,null,null,null,null,null,null,null,null,null,null,null,null,null,null,null,null,null,null,null,null,null,null,null,null,null,"Ribble Valley Borough Council"]
[null,null,null,null,null,null,null,null,null,null,null,null,null,null,null,null,null,null,null,null,null,null,null,null,null,null,null,null,null,null,null,null,"Richmondshire District Council"]
[null,null,null,null,null,null,null,null,null,null,null,null,null,null,null,null,null,null,null,null,null,null,null,null,null,null,null,null,null,null,null,null,"Rochdale Metropolitan Borough Council"]
[null,null,null,null,null,null,null,null,null,null,null,null,null,null,null,null,null,null,null,null,null,null,null,null,null,null,null,null,null,null,null,null,"Rochford District Council"]
[null,null,null,null,null,null,null,null,null,null,null,null,null,null,null,null,null,null,null,null,null,null,null,null,null,null,null,null,null,null,null,null,"Rossendale Borough Council"]
[null,null,null,null,null,null,null,null,null,null,null,null,null,null,null,null,null,null,null,null,null,null,null,null,null,null,null,null,null,null,null,null,"Rother District Council"]
[null,null,null,null,null,null,null,null,null,null,null,null,null,null,null,null,null,null,null,null,null,null,null,null,null,null,null,null,null,null,null,null,"Rotherham Metropolitan Borough Council"]
[null,null,null,null,null,null,null,null,null,null,null,null,null,null,null,null,null,null,null,null,null,null,null,null,null,null,null,null,null,null,null,null,"Royal Borough of Kensington & Chelsea"]
[null,null,null,null,null,null,null,null,null,null,null,null,null,null,null,null,null,null,null,null,null,null,null,null,null,null,null,null,null,null,null,null,"Royal Borough of Kingston upon Thames"]
[null,null,null,null,null,null,null,null,null,null,null,null,null,null,null,null,null,null,null,null,null,null,null,null,null,null,null,null,null,null,null,null,"Royal Borough of Windsor & Maidenhead"]
[null,null,null,null,null,null,null,null,null,null,null,null,null,null,null,null,null,null,null,null,null,null,null,null,null,null,null,null,null,null,null,null,"Rugby Borough Council"]
[null,null,null,null,null,null,null,null,null,null,null,null,null,null,null,null,null,null,null,null,null,null,null,null,null,null,null,null,null,null,null,null,"Runnymede Borough Council"]
[null,null,null,null,null,null,null,null,null,null,null,null,null,null,null,null,null,null,null,null,null,null,null,null,null,null,null,null,null,null,null,null,"Rushcliffe Borough Council"]
[null,null,null,null,null,null,null,null,null,null,null,null,null,null,null,null,null,null,null,null,null,null,null,null,null,null,null,null,null,null,null,null,"Rushmoor Borough Council"]
[null,null,null,null,null,null,null,null,null,null,null,null,null,null,null,null,null,null,null,null,null,null,null,null,null,null,null,null,null,null,null,null,"Rutland County Council"]
[null,null,null,null,null,null,null,null,null,null,null,null,null,null,null,null,null,null,null,null,null,null,null,null,null,null,null,null,null,null,null,null,"Ryedale District Council"]
[null,null,null,null,null,null,null,null,null,null,null,null,null,null,null,null,null,null,null,null,null,null,null,null,null,null,null,null,null,null,null,null,"Salford City Council"]
[null,null,null,null,null,null,null,null,null,null,null,null,null,null,null,null,null,null,null,null,null,null,null,null,null,null,null,null,null,null,null,null,"Sandwell Metropolitan Borough Council"]
[null,null,null,null,null,null,null,null,null,null,null,null,null,null,null,null,null,null,null,null,null,null,null,null,null,null,null,null,null,null,null,null,"Scarborough Borough Council"]
[null,null,null,null,null,null,null,null,null,null,null,null,null,null,null,null,null,null,null,null,null,null,null,null,null,null,null,null,null,null,null,null,"Sedgemoor District Council"]
[null,null,null,null,null,null,null,null,null,null,null,null,null,null,null,null,null,null,null,null,null,null,null,null,null,null,null,null,null,null,null,null,"Sefton MBC"]
[null,null,null,null,null,null,null,null,null,null,null,null,null,null,null,null,null,null,null,null,null,null,null,null,null,null,null,null,null,null,null,null,"Selby District Council"]
[null,null,null,null,null,null,null,null,null,null,null,null,null,null,null,null,null,null,null,null,null,null,null,null,null,null,null,null,null,null,null,null,"Sevenoaks District Council"]
[null,null,null,null,null,null,null,null,null,null,null,null,null,null,null,null,null,null,null,null,null,null,null,null,null,null,null,null,null,null,null,null,"Sheffield City Council"]
[null,null,null,null,null,null,null,null,null,null,null,null,null,null,null,null,null,null,null,null,null,null,null,null,null,null,null,null,null,null,null,null,"Shepway District Council"]
[null,null,null,null,null,null,null,null,null,null,null,null,null,null,null,null,null,null,null,null,null,null,null,null,null,null,null,null,null,null,null,null,"Shropshire Council"]
[null,null,null,null,null,null,null,null,null,null,null,null,null,null,null,null,null,null,null,null,null,null,null,null,null,null,null,null,null,null,null,null,"Slough Borough Council"]
[null,null,null,null,null,null,null,null,null,null,null,null,null,null,null,null,null,null,null,null,null,null,null,null,null,null,null,null,null,null,null,null,"Solihull Metropolitan Borough Council"]
[null,null,null,null,null,null,null,null,null,null,null,null,null,null,null,null,null,null,null,null,null,null,null,null,null,null,null,null,null,null,null,null,"Somerset County Council"]
[null,null,null,null,null,null,null,null,null,null,null,null,null,null,null,null,null,null,null,null,null,null,null,null,null,null,null,null,null,null,null,null,"South Bucks District Council"]
[null,null,null,null,null,null,null,null,null,null,null,null,null,null,null,null,null,null,null,null,null,null,null,null,null,null,null,null,null,null,null,null,"South Cambridgeshire District Council"]
[null,null,null,null,null,null,null,null,null,null,null,null,null,null,null,null,null,null,null,null,null,null,null,null,null,null,null,null,null,null,null,null,"South Derbyshire District Council"]
[null,null,null,null,null,null,null,null,null,null,null,null,null,null,null,null,null,null,null,null,null,null,null,null,null,null,null,null,null,null,null,null,"South Gloucestershire Council"]
[null,null,null,null,null,null,null,null,null,null,null,null,null,null,null,null,null,null,null,null,null,null,null,null,null,null,null,null,null,null,null,null,"South Hams District Council"]
[null,null,null,null,null,null,null,null,null,null,null,null,null,null,null,null,null,null,null,null,null,null,null,null,null,null,null,null,null,null,null,null,"South Holland District Council"]
[null,null,null,null,null,null,null,null,null,null,null,null,null,null,null,null,null,null,null,null,null,null,null,null,null,null,null,null,null,null,null,null,"South Kesteven District Council"]
[null,null,null,null,null,null,null,null,null,null,null,null,null,null,null,null,null,null,null,null,null,null,null,null,null,null,null,null,null,null,null,null,"South Lakeland District Council"]
[null,null,null,null,null,null,null,null,null,null,null,null,null,null,null,null,null,null,null,null,null,null,null,null,null,null,null,null,null,null,null,null,"South Norfolk District Council"]
[null,null,null,null,null,null,null,null,null,null,null,null,null,null,null,null,null,null,null,null,null,null,null,null,null,null,null,null,null,null,null,null,"South Northamptonshire Council"]
[null,null,null,null,null,null,null,null,null,null,null,null,null,null,null,null,null,null,null,null,null,null,null,null,null,null,null,null,null,null,null,null,"South Oxfordshire District Council"]
[null,null,null,null,null,null,null,null,null,null,null,null,null,null,null,null,null,null,null,null,null,null,null,null,null,null,null,null,null,null,null,null,"South Ribble Borough Council"]
[null,null,null,null,null,null,null,null,null,null,null,null,null,null,null,null,null,null,null,null,null,null,null,null,null,null,null,null,null,null,null,null,"South Somerset District Council"]
[null,null,null,null,null,null,null,null,null,null,null,null,null,null,null,null,null,null,null,null,null,null,null,null,null,null,null,null,null,null,null,null,"South Staffordshire Council"]
[null,null,null,null,null,null,null,null,null,null,null,null,null,null,null,null,null,null,null,null,null,null,null,null,null,null,null,null,null,null,null,null,"South Tyneside Council"]
[null,null,null,null,null,null,null,null,null,null,null,null,null,null,null,null,null,null,null,null,null,null,null,null,null,null,null,null,null,null,null,null,"Southampton City Council"]
[null,null,null,null,null,null,null,null,null,null,null,null,null,null,null,null,null,null,null,null,null,null,null,null,null,null,null,null,null,null,null,null,"Southend-on-Sea Borough Council"]
[null,null,null,null,null,null,null,null,null,null,null,null,null,null,null,null,null,null,null,null,null,null,null,null,null,null,null,null,null,null,null,null,"Spelthorne Borough Council"]
[null,null,null,null,null,null,null,null,null,null,null,null,null,null,null,null,null,null,null,null,null,null,null,null,null,null,null,null,null,null,null,null,"St Albans City & District Council"]
[null,null,null,null,null,null,null,null,null,null,null,null,null,null,null,null,null,null,null,null,null,null,null,null,null,null,null,null,null,null,null,null,"St Edmundsbury Borough Council"]
[null,null,null,null,null,null,null,null,null,null,null,null,null,null,null,null,null,null,null,null,null,null,null,null,null,null,null,null,null,null,null,null,"St Helens Metropolitan Borough Council"]
[null,null,null,null,null,null,null,null,null,null,null,null,null,null,null,null,null,null,null,null,null,null,null,null,null,null,null,null,null,null,null,null,"Stafford Borough Council"]
[null,null,null,null,null,null,null,null,null,null,null,null,null,null,null,null,null,null,null,null,null,null,null,null,null,null,null,null,null,null,null,null,"Staffordshire County Council"]
[null,null,null,null,null,null,null,null,null,null,null,null,null,null,null,null,null,null,null,null,null,null,null,null,null,null,null,null,null,null,null,null,"Staffordshire Moorlands District Council"]
[null,null,null,null,null,null,null,null,null,null,null,null,null,null,null,null,null,null,null,null,null,null,null,null,null,null,null,null,null,null,null,null,"Stevenage Borough Council"]
[null,null,null,null,null,null,null,null,null,null,null,null,null,null,null,null,null,null,null,null,null,null,null,null,null,null,null,null,null,null,null,null,"Stockport Metropolitan Borough Council"]
[null,null,null,null,null,null,null,null,null,null,null,null,null,null,null,null,null,null,null,null,null,null,null,null,null,null,null,null,null,null,null,null,"Stockton-on-Tees Borough Council"]
[null,null,null,null,null,null,null,null,null,null,null,null,null,null,null,null,null,null,null,null,null,null,null,null,null,null,null,null,null,null,null,null,"Stoke-on-Trent City Council"]
[null,null,null,null,null,null,null,null,null,null,null,null,null,null,null,null,null,null,null,null,null,null,null,null,null,null,null,null,null,null,null,null,"Stratford-on-Avon District Council"]
[null,null,null,null,null,null,null,null,null,null,null,null,null,null,null,null,null,null,null,null,null,null,null,null,null,null,null,null,null,null,null,null,"Stroud District Council"]
[null,null,null,null,null,null,null,null,null,null,null,null,null,null,null,null,null,null,null,null,null,null,null,null,null,null,null,null,null,null,null,null,"Suffolk Coastal District Council"]
[null,null,null,null,null,null,null,null,null,null,null,null,null,null,null,null,null,null,null,null,null,null,null,null,null,null,null,null,null,null,null,null,"Suffolk County Council"]
[null,null,null,null,null,null,null,null,null,null,null,null,null,null,null,null,null,null,null,null,null,null,null,null,null,null,null,null,null,null,null,null,"Sunderland City Council"]
[null,null,null,null,null,null,null,null,null,null,null,null,null,null,null,null,null,null,null,null,null,null,null,null,null,null,null,null,null,null,null,null,"Surrey County Council"]
[null,null,null,null,null,null,null,null,null,null,null,null,null,null,null,null,null,null,null,null,null,null,null,null,null,null,null,null,null,null,null,null,"Surrey Heath Borough Council"]
[null,null,null,null,null,null,null,null,null,null,null,null,null,null,null,null,null,null,null,null,null,null,null,null,null,null,null,null,null,null,null,null,"Swale Borough Council"]
[null,null,null,null,null,null,null,null,null,null,null,null,null,null,null,null,null,null,null,null,null,null,null,null,null,null,null,null,null,null,null,null,"Swindon Borough Council"]
[null,null,null,null,null,null,null,null,null,null,null,null,null,null,null,null,null,null,null,null,null,null,null,null,null,null,null,null,null,null,null,null,"Tameside Metropolitan Borough Council"]
[null,null,null,null,null,null,null,null,null,null,null,null,null,null,null,null,null,null,null,null,null,null,null,null,null,null,null,null,null,null,null,null,"Tamworth Borough Council"]
[null,null,null,null,null,null,null,null,null,null,null,null,null,null,null,null,null,null,null,null,null,null,null,null,null,null,null,null,null,null,null,null,"Tandridge District Council"]
[null,null,null,null,null,null,null,null,null,null,null,null,null,null,null,null,null,null,null,null,null,null,null,null,null,null,null,null,null,null,null,null,"Taunton Deane Borough Council"]
[null,null,null,null,null,null,null,null,null,null,null,null,null,null,null,null,null,null,null,null,null,null,null,null,null,null,null,null,null,null,null,null,"Teignbridge District Council"]
[null,null,null,null,null,null,null,null,null,null,null,null,null,null,null,null,null,null,null,null,null,null,null,null,null,null,null,null,null,null,null,null,"Telford & Wrekin Council"]
[null,null,null,null,null,null,null,null,null,null,null,null,null,null,null,null,null,null,null,null,null,null,null,null,null,null,null,null,null,null,null,null,"Tendring District Council"]
[null,null,null,null,null,null,null,null,null,null,null,null,null,null,null,null,null,null,null,null,null,null,null,null,null,null,null,null,null,null,null,null,"Test Valley Borough Council"]
[null,null,null,null,null,null,null,null,null,null,null,null,null,null,null,null,null,null,null,null,null,null,null,null,null,null,null,null,null,null,null,null,"Tewkesbury Borough Council"]
[null,null,null,null,null,null,null,null,null,null,null,null,null,null,null,null,null,null,null,null,null,null,null,null,null,null,null,null,null,null,null,null,"Thanet District Council"]
[null,null,null,null,null,null,null,null,null,null,null,null,null,null,null,null,null,null,null,null,null,null,null,null,null,null,null,null,null,null,null,null,"Three Rivers District Council"]
[null,null,null,null,null,null,null,null,null,null,null,null,null,null,null,null,null,null,null,null,null,null,null,null,null,null,null,null,null,null,null,null,"Thurrock Council"]
[null,null,null,null,null,null,null,null,null,null,null,null,null,null,null,null,null,null,null,null,null,null,null,null,null,null,null,null,null,null,null,null,"Tonbridge & Malling Borough Council"]
[null,null,null,null,null,null,null,null,null,null,null,null,null,null,null,null,null,null,null,null,null,null,null,null,null,null,null,null,null,null,null,null,"Torbay Council"]
[null,null,null,null,null,null,null,null,null,null,null,null,null,null,null,null,null,null,null,null,null,null,null,null,null,null,null,null,null,null,null,null,"Torridge District Council"]
[null,null,null,null,null,null,null,null,null,null,null,null,null,null,null,null,null,null,null,null,null,null,null,null,null,null,null,null,null,null,null,null,"Trafford Council"]
[null,null,null,null,null,null,null,null,null,null,null,null,null,null,null,null,null,null,null,null,null,null,null,null,null,null,null,null,null,null,null,null,"Tunbridge Wells Borough Council"]
[null,null,null,null,null,null,null,null,null,null,null,null,null,null,null,null,null,null,null,null,null,null,null,null,null,null,null,null,null,null,null,null,"Uttlesford District Council"]
[null,null,null,null,null,null,null,null,null,null,null,null,null,null,null,null,null,null,null,null,null,null,null,null,null,null,null,null,null,null,null,null,"Vale of White Horse District Council"]
[null,null,null,null,null,null,null,null,null,null,null,null,null,null,null,null,null,null,null,null,null,null,null,null,null,null,null,null,null,null,null,null,"Wakefield Metropolitan District Council"]
[null,null,null,null,null,null,null,null,null,null,null,null,null,null,null,null,null,null,null,null,null,null,null,null,null,null,null,null,null,null,null,null,"Walsall Council"]
[null,null,null,null,null,null,null,null,null,null,null,null,null,null,null,null,null,null,null,null,null,null,null,null,null,null,null,null,null,null,null,null,"Wandsworth Borough Council"]
[null,null,null,null,null,null,null,null,null,null,null,null,null,null,null,null,null,null,null,null,null,null,null,null,null,null,null,null,null,null,null,null,"Wansbeck District Council"]
[null,null,null,null,null,null,null,null,null,null,null,null,null,null,null,null,null,null,null,null,null,null,null,null,null,null,null,null,null,null,null,null,"Warrington Borough Council"]
[null,null,null,null,null,null,null,null,null,null,null,null,null,null,null,null,null,null,null,null,null,null,null,null,null,null,null,null,null,null,null,null,"Warwick District Council"]
[null,null,null,null,null,null,null,null,null,null,null,null,null,null,null,null,null,null,null,null,null,null,null,null,null,null,null,null,null,null,null,null,"Warwickshire County Council"]
[null,null,null,null,null,null,null,null,null,null,null,null,null,null,null,null,null,null,null,null,null,null,null,null,null,null,null,null,null,null,null,null,"Watford Borough Council"]
[null,null,null,null,null,null,null,null,null,null,null,null,null,null,null,null,null,null,null,null,null,null,null,null,null,null,null,null,null,null,null,null,"Waveney District Council"]
[null,null,null,null,null,null,null,null,null,null,null,null,null,null,null,null,null,null,null,null,null,null,null,null,null,null,null,null,null,null,null,null,"Waverley Borough Council"]
[null,null,null,null,null,null,null,null,null,null,null,null,null,null,null,null,null,null,null,null,null,null,null,null,null,null,null,null,null,null,null,null,"Wealden District Council"]
[null,null,null,null,null,null,null,null,null,null,null,null,null,null,null,null,null,null,null,null,null,null,null,null,null,null,null,null,null,null,null,null,"Wellingborough Borough Council"]
[null,null,null,null,null,null,null,null,null,null,null,null,null,null,null,null,null,null,null,null,null,null,null,null,null,null,null,null,null,null,null,null,"Welwyn Hatfield Borough Council"]
[null,null,null,null,null,null,null,null,null,null,null,null,null,null,null,null,null,null,null,null,null,null,null,null,null,null,null,null,null,null,null,null,"West Berkshire Council"]
[null,null,null,null,null,null,null,null,null,null,null,null,null,null,null,null,null,null,null,null,null,null,null,null,null,null,null,null,null,null,null,null,"West Devon Borough Council"]
[null,null,null,null,null,null,null,null,null,null,null,null,null,null,null,null,null,null,null,null,null,null,null,null,null,null,null,null,null,null,null,null,"West Dorset District Council"]
[null,null,null,null,null,null,null,null,null,null,null,null,null,null,null,null,null,null,null,null,null,null,null,null,null,null,null,null,null,null,null,null,"West Lancashire District Council"]
[null,null,null,null,null,null,null,null,null,null,null,null,null,null,null,null,null,null,null,null,null,null,null,null,null,null,null,null,null,null,null,null,"West Lindsey District Council"]
[null,null,null,null,null,null,null,null,null,null,null,null,null,null,null,null,null,null,null,null,null,null,null,null,null,null,null,null,null,null,null,null,"West Oxfordshire District Council"]
[null,null,null,null,null,null,null,null,null,null,null,null,null,null,null,null,null,null,null,null,null,null,null,null,null,null,null,null,null,null,null,null,"West Somerset District Council"]
[null,null,null,null,null,null,null,null,null,null,null,null,null,null,null,null,null,null,null,null,null,null,null,null,null,null,null,null,null,null,null,null,"West Sussex County Council"]
[null,null,null,null,null,null,null,null,null,null,null,null,null,null,null,null,null,null,null,null,null,null,null,null,null,null,null,null,null,null,null,null,"Westminster City Council"]
[null,null,null,null,null,null,null,null,null,null,null,null,null,null,null,null,null,null,null,null,null,null,null,null,null,null,null,null,null,null,null,null,"Weymouth & Portland Borough Council"]
[null,null,null,null,null,null,null,null,null,null,null,null,null,null,null,null,null,null,null,null,null,null,null,null,null,null,null,null,null,null,null,null,"Wigan Council"]
[null,null,null,null,null,null,null,null,null,null,null,null,null,null,null,null,null,null,null,null,null,null,null,null,null,null,null,null,null,null,null,null,"Wiltshire Council"]
[null,null,null,null,null,null,null,null,null,null,null,null,null,null,null,null,null,null,null,null,null,null,null,null,null,null,null,null,null,null,null,null,"Winchester City Council"]
[null,null,null,null,null,null,null,null,null,null,null,null,null,null,null,null,null,null,null,null,null,null,null,null,null,null,null,null,null,null,null,null,"Wirral Metropolitan Borough Council"]
[null,null,null,null,null,null,null,null,null,null,null,null,null,null,null,null,null,null,null,null,null,null,null,null,null,null,null,null,null,null,null,null,"Woking Borough Council"]
[null,null,null,null,null,null,null,null,null,null,null,null,null,null,null,null,null,null,null,null,null,null,null,null,null,null,null,null,null,null,null,null,"Wokingham District Council"]
[null,null,null,null,null,null,null,null,null,null,null,null,null,null,null,null,null,null,null,null,null,null,null,null,null,null,null,null,null,null,null,null,"Wolverhampton City Council"]
[null,null,null,null,null,null,null,null,null,null,null,null,null,null,null,null,null,null,null,null,null,null,null,null,null,null,null,null,null,null,null,null,"Worcester City Council"]
[null,null,null,null,null,null,null,null,null,null,null,null,null,null,null,null,null,null,null,null,null,null,null,null,null,null,null,null,null,null,null,null,"Worcestershire County Council"]
[null,null,null,null,null,null,null,null,null,null,null,null,null,null,null,null,null,null,null,null,null,null,null,null,null,null,null,null,null,null,null,null,"Worthing Borough Council"]
[null,null,null,null,null,null,null,null,null,null,null,null,null,null,null,null,null,null,null,null,null,null,null,null,null,null,null,null,null,null,null,null,"Wychavon District Council"]
[null,null,null,null,null,null,null,null,null,null,null,null,null,null,null,null,null,null,null,null,null,null,null,null,null,null,null,null,null,null,null,null,"Wycombe District Council"]
[null,null,null,null,null,null,null,null,null,null,null,null,null,null,null,null,null,null,null,null,null,null,null,null,null,null,null,null,null,null,null,null,"Wyre Borough Council"]
[null,null,null,null,null,null,null,null,null,null,null,null,null,null,null,null,null,null,null,null,null,null,null,null,null,null,null,null,null,null,null,null,"Wyre Forest District Council "]

{"sheet":"Application","index":5,"n_rows":210,"n_cols":16,"rows_kept":210,"cut":false,"hidden":false,"merged":[[96,10,96,13],[97,7,97,8],[109,1,109,2],[104,3,104,4],[128,1,128,2],[128,5,128,6],[121,1,121,3],[105,6,105,10],[107,1,107,2],[97,10,97,11],[97,1,97,2],[132,5,132,6],[84,1,84,10],[90,1,90,2],[52,9,52,10],[52,5,52,6],[67,1,67,2],[68,1,68,2],[69,1,69,2],[68,5,68,6],[70,5,70,6],[71,5,71,6],[71,1,71,2],[56,5,56,6],[70,1,70,2],[60,1,60,2],[86,1,86,4],[92,3,92,5],[110,5,110,6],[110,10,110,11],[130,7,130,11],[78,1,78,3],[67,5,67,6],[69,5,69,6],[60,9,60,10],[10,9,10,11],[53,5,53,6],[52,1,52,2],[199,1,199,7],[174,1,177,3],[152,9,152,10],[157,10,157,11],[155,5,155,6],[150,1,150,11],[74,1,74,2],[80,1,80,11],[82,9,82,11],[179,1,179,4],[169,10,188,11],[198,1,198,7],[189,4,189,5],[189,6,189,8],[112,4,113,4],[128,7,128,11],[191,2,191,3],[147,1,147,3],[187,1,187,9],[189,2,189,3],[130,5,130,6],[30,1,30,2],[63,11,63,12],[53,9,53,10],[54,9,54,10],[55,9,55,10],[53,1,53,2],[60,5,60,6],[63,3,63,4],[63,7,63,8],[55,1,55,2],[54,5,54,6],[55,5,55,6],[54,1,54,2],[51,1,51,3],[42,1,42,2],[44,1,44,2],[56,9,56,10],[56,1,56,2],[193,6,193,8],[50,15,50,17],[52,15,52,17],[53,15,53,17],[54,15,54,17],[55,15,55,17],[56,15,56,17],[71,9,71,10],[52,13,52,14],[53,13,53,14],[54,13,54,14],[55,13,55,14],[56,13,56,14],[70,9,70,10],[68,9,68,10],[67,9,67,10],[69,9,69,10],[191,6,191,8],[160,1,160,7],[161,1,161,7],[162,1,162,7],[167,1,167,11],[171,1,172,3],[132,7,132,11],[3,3,3,4],[164,7,165,7],[183,7,184,7],[185,7,186,7],[149,12,155,15],[173,7,178,7],[159,1,159,7],[134,1,134,2],[106,5,106,9],[125,5,125,6],[138,1,139,6],[136,1,136,2],[136,7,136,11],[132,1,132,2],[164,1,164,2],[153,1,153,2],[153,7,153,8],[143,6,143,7],[145,4,145,7],[141,1,141,2],[142,1,143,3],[10,1,10,2],[16,3,16,4],[18,3,18,4]]}
[null,"About You","About your Plant","Charges & Declaration"]
[null,"Medium Combustion Plant/Specified Generators  - Standard Rules Permit Application ",null,null,null,null,null,null,null,"Version 5.7","Yes"]
[]
[null,"This application is for",null,"A new permit",null,null,"If 'Adding plant'  please supply the reference number of your exisitng Permit",null,null,null,null,null,"New"]
[]
[null,"If you want to add more plant to an existing permit then you do not need to supply all your address details again under section 6. You should update contact details in Section 7 if they have changed"]
[null,"The standard rule set of your existing permit must remain the same in order to add plant using this application form. If the addition of plant would change this you must make an application for a new permit and surrender the existing one."]
[]
[null,"ABOUT YOU (The Operator)"]
[]
[null,"1. I am applying as a:",null,"Registered Company",null,null,null,null,null,"Import data from a previous version of this form"]
[null,"If you have selected Individual, go to Section 2, Organisation of Individuals: Section 3, Public Body: Section 4, Company: Section 5"]
[]
[null,"2. Individual"]
[null,"2a. Name"]
[]
[null,null,"Title"]
[]
[null,null,"First Name"]
[]
[null,null,"Surname"]
[]
[null,null,"Date of Birth"]
[]
[null,"3. Organisation of Individuals"]
[]
[null,"3a. Type of Organisation"]
[]
[null,"3b.Name of Organisation"]
[]
[null,"Names of Individuals",null,"Please Click Here to Enter"]
[]
[null,"4. Government Departments, Agencies and Public Bodies"]
[]
[null,"4a. Type"]
[]
[null,"4b. Name"]
[]
[null,"4c. Executive Officer(s)",null,"Please Click Here to Enter"]
[]
[]
[null,"5. Registered Company",null,"Please read our guidance on who is an appropriate 'Operator'"]
[null,"5a. Name of Company",null,"Olleco"]
[]
[null,"5b. Company Registration No.",null,"05878742"]
[]
[null,"Date of Registration",null,"2006-07-17"]
[]
[null,"5c. Director Details",null,"Please Click Here to Enter"]
[]
[null,"6. Your Addresses",null,null,null,null,"Same as",null,null,null,"Same as",null,null,null,"Same as"]
[null,"6a. Your Main (Registered Office) Address",null,null,null,"6b. Main UK Business Address",null,null,null,"6c. Your Billing Address",null,null,null,"6d. Your Subsistence Billing Address (if Different)"]
[null,"Premises",null,"Olleco",null,"Premises",null,"Olleco",null,"Premises",null,"Olleco North West",null,"Premises",null,"Olleco North West"]
[null,"Street",null,"Battlefield Road",null,"Street",null,"Northampton Road",null,"Street",null,"Birchall Street",null,"Street",null,"Birchall Street"]
[null,"Locality/Suburb",null,null,null,"Locality/Suburb",null,"Blisworth",null,"Locality/Suburb",null,"Merseyside",null,"Locality/Suburb",null,"Merseyside"]
[null,"Town/City",null,"Shrewsbury",null,"Town/City",null,"Northampton",null,"Town/City",null,"Liverpool",null,"Town/City",null,"Liverpool"]
[null,"Postcode",null,"SY1 4AH",null,"Postcode",null,"NN7 3DR",null,"Postcode",null,"L20 8PD",null,"Postcode",null,"L20 8PD"]
[]
[null,"7. Contact Details",null,null,null,null,"Same as",null,null,null,"Same as"]
[null,"7a. Application Contact",null,null,null,"7b. Operational Contact",null,null,null,"7c. Billing Contact "]
[null,"First Name",null,"Stephen",null,"First Name",null,"Chris",null,"First Name",null,"Convert Accounts"]
[null,"Last Name",null,"Weston",null,"Last Name",null,"Barnes",null,"Last Name"]
[null,"Contact Tel",null,"07967338361",null,"Contact Tel",null,"07815496196",null,"Contact Tel",null,"0151 933 0453"]
[null,"email",null,"stephenweston@olleco.co.uk",null,"email",null,"chrisbarnes@anneliseco.co.uk",null,"email",null,"convertaccounts@olleco.co.uk"]
[]
[null,null,"Same as",null,null,null,"Same as",null,null,null,"Same as","Billing Address"]
[]
[null,"Premises",null,"Olleco North West",null,"Premises",null,"Olleco North West",null,"Premises",null,"Olleco North West"]
[null,"Street",null,"Birchall Street",null,"Street",null,"Birchall Street",null,"Street",null,"Birchall Street"]
[null,"Locality/Suburb",null,"Merseyside",null,"Locality/Suburb",null,"Merseyside",null,"Locality/Suburb",null,"Merseyside"]
[null,"Town/City",null,"Liverpool",null,"Town/City",null,"Liverpool",null,"Town/City",null,"Liverpool"]
[null,"Postcode",null,"L20 8PD",null,"Postcode",null,"L20 8PD",null,"Postcode",null,"L20 8PD"]
[]
[]
[null,"RELEVANT CONVICTIONS"]
[]
[null,"Do you (individual applicants) or any members of your organisation (see notes) have any Relevant Convictions?",null,null,null,null,null,null,null,"No"]
[]
[null,"Please click here to enter details"]
[]
[null,"FINANCES"]
[]
[null,"Do you have current or past bankruptcy or insolvency proceedings to declare?",null,null,null,null,null,"No"]
[]
[null,"If Yes, please provide a document giving details of the set-up costs (including infrastructure), maintenance and clean up costs for the proposed facility against which a credit check may be assessed.  Enter the document's file name in the box to the right and attach it in your application email"]
[]
[null,"RULE SET YOU ARE APPLYING FOR"]
[]
[null,"Standard Rule Set:",null,"SR2018 No 7",null,"New Medium Combustion Plant, low risk, stationary  from 1 to <20MW per plant, (<50MW total) in operation on/after 20/12/2018"]
[]
[null,"ABOUT YOUR SITE/PLANT",null,null,null,null,null,null,null,null,null,"No"]
[]
[null,"This application relates to:",null,null,null,null,null,"Was this plant/generator in use before 20/12/2018?",null,null,"No"]
[]
[]
[null,null,null,null,null,null,null,null,null,null,"For a full list of Nace codes,click here:"]
[null,null,null,null,null,null,null,null,null,null,"EUROPA - Competition - List of NACE codes"]
[null,"Site Name",null,"Olleco Dagenham",null,null,null,"NACE* Code",null,null,"E.38 - Waste collection, treatment and disposal activities; materials recovery"]
[null,"Premises",null,"Olleco Dagenham"]
[null,"Street",null,"Hindmans Way"]
[null,"Locality/Suburb"]
[null,"Town",null,"Dagenham","No"]
[null,"Postcode",null,"RM9 6LP"]
[]
[null,"Local Authority Area",null,"London Borough of Barking & Dagenham"]
[null,null,null,null,null,null,"Where Ruleset is SR2018 No.7 or SR2022 No.9 AND MCP's aggregate to >= 20MW"]
[null,null,null,null,null,"Does this operation include any activities subject to the energy efficiency directive?",null,null,null,null,"No","  for other applications this can be left blank"]
[null,"Information on your plant ",null,"Click here to add plant details"]
[]
[null,"Plant name"]
[null,"Serial No of Plant",null,null,null,"Plant Manufacturer",null,null,null,"Model"]
[]
[null,"Easting  (of emission point)",null,null,"OR","Latitude (of emission point)",null,null,null,"Google Maps"]
[null,"Northing (of emission point)",null,null,null,"Longitude (of emission point)"]
[]
[null,"Commissioning Date (dd/mm/yyyy)",null,"09/2017",null,"Total MW (input)",null,3.2,"MWth",null,"MCP Status",null,false,false]
[]
[null,"Type of Technology",null,null,null,"Stack Height",null,3,"Metres"]
[]
[null,"Fuel (main fuel)",null,null,null,"Annual Hours",null,5000,"h",null,"Avg Annual Load (%)",0.5]
[]
[null,"If your plant uses more than one fuel",null,null,"%"]
[null,"Please provide a breakdown",null,"Natural Gas"]
[null,null,null,"Biogas"]
[null,null,null,"Gas Oil"]
[null,null,null,"Other",null,"Other Fuel Desc:"]
[]
[]
[null,"Is Your Site in a AQMA",null,"No",null,"AQMA Local Authority"]
[]
[null,"Closest Human Receptor Distance",null,580,"Metres","Receptor Details"]
[]
[null,"Closest Ecological Receptor Distance",null,2700,"Metres","Receptor Details"]
[]
[null,"Background NO2 concentration",null,29,"μg/m3"]
[]
[null,"Will secondary abatement be fitted?",null,"Yes",null,"If Yes What Type?"]
[]
[null,"When you have entered the required information, click this button to verify that the operational parameters of your plant met the requirements of the rule set you have chosen"]
[null,null,null,null,null,null,null,"Yes"]
[]
[null,"MANAGEMENT SYSTEM"]
[null,"Does your management system meet \nthe conditions set out in our guidance?"]
[null,null,null,null,"Yes",null,"Click here for our guidance"]
[]
[null,"Type of Management System you have in place",null,null,"ISO 14001 ",null,null,null,null,"`"]
[]
[null,"CHARGES"]
[]
[null,"Charges"]
[null,"Please choose your preferred 'Payment Method' and Payment Date, and then click on the 'Generate Payment Ref' button to auto generate your unique payment reference.  "]
[null,"(Note: all other fields marked with * in this charges section will be auto populated)"]
[null,null,null,null,null,null,null,null,null,"When you have completed the Plant Details and Common Windshields tabs, click button to the right to calculate fees"]
[null,"Charges Due",null,446,null,"Payment Method",null,"Electronic Transfer/Bacs"]
[]
[null,"Payment Date",null,"2024-05-13",null,"Unique Payment Ref",null,"MCPOL1727VO"]
[]
[null,"Card Holder:","Name             ",null,null,"Tel",null,null,null,"Email"]
[]
[null,"For electronic transfers, use the following information to make your payment."]
[null,"Company Name:  Environment Agency, Address: SSCL (Environment Agency), PO Box 797, Newport Gwent, NP10 8FZ"]
[null,"Bank:  RBS/NatWest, Address:  London Corporate Service Centre, CPB Services, 2nd Floor, 280 Bishopsgate, London EC2M 4RB"]
[null,"Sort code: 60-70-80    Account Number: 10014411   Account Name:  EA RECEIPTS"]
[]
[null,"Has this been paid?",null,"Yes",null,"Notes"]
[]
[]
[null,"DECLARATION"]
[]
[null,"Please note, you can be prosecuted and fined if you give false or misleading information in relation to this application",null,null,null,null,null,null,null,null,"Declaration\n\nEnsure all relevant people give their consent to the declaration.\n \nRelevant people are each applicant or in the case of a company, a director, manager, company secretary or any similar officer listed on current appointments at Companies House. In the case of a Limited Liability Partnership (LLP), it includes any partner. \n\nTo simplify and speed up the application process, we recommend that the declaration in the application form is filled in by an officer of a company or one of the partners in a Limited Liability Partnership (LLP). \n\nIf you wish a manager or other employee not listed on current appointments at Companies House to fill in the declaration on behalf of the company or LLP, we will need confirmation (by letter or email) from a relevant person; that is, an officer of the company or a partner in the LLP confirming that the person has the authority to fill in the declaration. \n\nWhere the operator is the subject of any insolvency procedure, it will be necessary for the declaration to be filled in by the Official Receiver/appointed insolvency practitioner."]
[]
[null,"I confirm that I am authorised to apply for this permit by the organisation (company) or individual responsible"]
[null,null,null,null,null,"Yes"]
[]
[null,"My combustion plant will meet all the permit conditions within the standard rules permit that I have applied for, including all the emission limits and stack requirements (vertical and unimpeded by cowls or caps)",null,null,null,"Yes"]
[]
[]
[]
[]
[null,"Evidence to confirm the plant can meet the emission limit value is attached (optional)"]
[]
[]
[null,"The applicant will be the Operator of the above plant",null,null,null,"Yes",null,"This Application:"]
[null,null,null,null,null,null,null,"Contains information which is commercially confidential","No"]
[null,"The information I provide in this application is accurate and true",null,null,null,"Yes"]
[null,null,null,null,null,null,null,"Should be protected in the interests of national security","No"]
[null,"Signature of Authorised Official"]
[null,"Unless you are applying as an individual, this application must be signed by one of the listed Applicants, e.g. a Director (Company) or Executive Officer (Public Body), or someone other than the Application Contact (Organisation of Individuals). This person will be copied into certain official correspondence in relation to this application."]
[]
[null,"Signed:",null,null,"Email Address:",null,"stephenweston@olleco.co.uk"]
[]
[null,"Print Name:","Stephen Weston",null,null,"Position in Org ","SHEQ & Business Improvement Director"]
[]
[null,"Date:","2024-05-13",null,null,"On behalf of:","Olleco"]
[]
[]
[]
[null,"Before you submit – check:"]
[null,"·     Please check your data entries are accurate.  If any cell displays ################, this is likely to be a cutting and pasting                     "]
[null,"      error. If this errors occurs, please delete the information in this cell and re-enter it. If the problem persists, please contact us.     "]
[null,"·     Proof of payment (bank transfer only) included – we need to see the paid bank details and payment amount/s."]
[null,"·     Please ensure that the Unique Payment Reference in the application form matches the reference in your proof of payment"]
[null,"·     Is the billing address correct?"]
[null,"·     The Plant Details tab has been completed (Multiple Plant)"]
[null,"·     The Relevant Convictions tab has been completed (if applicable)"]
[null,"·     The names of individuals/executive officers have been completed on the Applicants tab (unless applying as a single individual)"]
[null,"·     The name and email address of an Authorised Official (see above) has been provided (unless applying as a single individual)"]
[]
[null,"Now save your application and email it (together with proof of bank transfer payment if paid by BACS) to:"]
[null,"MCPD-Application@environment-agency.gov.uk"]

{"sheet":"Applicants","index":6,"n_rows":25,"n_cols":13,"rows_kept":25,"cut":false,"hidden":false,"merged":[]}
["Title","First Name","Last Name ","Date of Birth DD/MM/YYYY","Position",null,"Premises","Street","Locality/Suburb","Town","Postcode","Back"]
["Mr","Norman","Heskin","1965-05-01","Director",null,"Octagon Point"," 5 Cheapside",null,"London, England","EC2V 6AA"]
["Mr ","Stephen","Weston",null,"SHEQ & Business Improvement Director",null,"Octagon Point"," 5 Cheapside",null,"London, England","EC2V 6AA"]
[null,null,null,null,null,null,"Octagon Point"," 5 Cheapside",null,"London, England","EC2V 6AA"]
[null,null,null,null,null,null,"Octagon Point"," 5 Cheapside",null,"London, England","EC2V 6AA"]
[null,null,null,null,null,null,"Octagon Point"," 5 Cheapside",null,"London, England","EC2V 6AA"]
[]
[null,null,null,null,null,null,null,null,null,null,null,null,{"$f":"B8 & \" \" &C8","v":" "}]
[null,null,null,null,null,null,null,null,null,null,null,null," "]
[null,null,null,null,null,null,null,null,null,null,null,null," "]
[null,null,null,null,null,null,null,null,null,null,null,null," "]
[null,null,null,null,null,null,null,null,null,null,null,null," "]
[null,null,null,null,null,null,null,null,null,null,null,null," "]
[null,null,null,null,null,null,null,null,null,null,null,null," "]
[null,null,null,null,null,null,null,null,null,null,null,null," "]
[null,null,null,null,null,null,null,null,null,null,null,null," "]
[null,null,null,null,null,null,null,null,null,null,null,null," "]
[null,null,null,null,null,null,null,null,null,null,null,null," "]
[null,null,null,null,null,null,null,null,null,null,null,null," "]
[null,null,null,null,null,null,null,null,null,null,null,null," "]
[null,null,null,null,null,null,null,null,null,null,null,null," "]
[]
[null,null,null,null,null,null,null,null,null,null,null,null," "]
[null,null,null,null,null,null,null,null,null,null,null,null," "]
[null,null,null,null,null,null,null,null,null,null,null,null," "]

{"sheet":"Relevant Convictions","index":7,"n_rows":2,"n_cols":11,"rows_kept":2,"cut":false,"hidden":true,"merged":[[1,0,20,0]]}
["Back","Title","First Name","Last Name ","Date of Birth","Position","Offence","Date","Court","Penalty Type","Penalty Detail"]
["Details of any convictions  that are now spent, do not need to be entered"]

{"sheet":"Plant Details","index":8,"n_rows":25,"n_cols":36,"rows_kept":25,"cut":false,"hidden":false,"merged":[[0,17,1,17],[20,18,21,19],[0,28,1,28],[0,30,1,30],[0,29,1,29],[0,20,1,20],[0,22,1,22],[24,1,24,2],[0,25,1,25],[0,26,1,26],[0,27,1,27],[21,1,21,6],[0,11,1,11],[0,12,1,12],[0,21,1,21],[0,3,1,3],[0,4,1,4],[20,9,21,11],[0,18,1,18],[0,24,1,24],[20,15,21,15],[0,19,1,19],[20,12,21,14],[0,32,1,32],[0,0,1,0],[0,7,1,7],[0,8,1,8],[0,9,1,9],[0,10,1,10],[0,1,1,1],[0,2,1,2],[0,5,1,5],[0,6,1,6],[0,31,1,31],[0,23,1,23],[0,13,1,13],[0,14,1,14],[0,15,1,15],[0,16,1,16]]}
["Back","Plant Name","Serial No. of Plant\n(If already purchased)","Plant Manufacturer","Model Name","Easting","Northing","Lat","Long","Commissioning Date","Size (MWth)","Technology","Fuel/Main Fuel","Secondary Fuel Type","Secondary Fuel Usage","% Use of Secondary Fuel","% Other Fuel","Other Fuel Description","Stack Height (metres)","If new plant does the flue share a common windshield?","Annual Hours","Limited Operating Hours","Annual Load (%)","In AQMA","AQMA Local Authority","Closest Human Receptor (metres)","Human Receptor Details","Closest Ecological Receptor (metres)","Ecological Receptor Details","Background NO2 (μg/m3)","Will secondary abatement be fitted to the plant?","Abatement Type","Will Meet New ELVs",true,null,false]
[]
["Example/\nRow ID","MCP 1","SN 123456789","Boilerx","X15",234561,654321,53.734439999999999,-1.7209700000000001,"2019-02-01",5,"Boiler","Natural Gas",null,null,null,null,null,5,"Yes - But can be monitored separately",3000,"Yes",0.85,"N","Leeds CC",200,"Housing Estate",1000,"Greengrass SSSI",31,"Y","SNCR","Yes"]
[1,"MCP 1","*not purchased yet","Yorkshire Man","YSX4500-37",null,null,51.519827999999997,0.14096886,"2024-08-01",3.2,"Boiler ","Natural Gas","Other Gaseous Fuel","Co-firing",null,null,null,3,"No",5000,"Yes",0.5,"No","Barking & Dagenham Council",null,null,2700,"Inner Thames Marshes",29,"No",null,"NA"]
[2]
[3]
[4]
[5]
[6]
[7]
[8]
[9]
[10]
[11]
[12]
[13]
[14]
[15]
[]
[null,"If you have more than 15 Medium Combustion Plant or 15 Generators on this application, please contact us at:"]
[null," MCPD-Application@environment-agency.gov.uk"]
[]
[]
[null,"IF YOU ARE APPLYING FOR RULESET SR2018 No7 OR SR2022 No9 AND ANY OF YOUR NEW PLANT SHARE A COMMON WINDSHIELD, THEN PLEASE CLICK BELOW TO GO TO THE COMMON WINDSHIELDS TAB"]
[null,"Common Windshield Details"]

{"sheet":"Common Windshields","index":9,"n_rows":23,"n_cols":5,"rows_kept":23,"cut":false,"hidden":false,"merged":[[1,0,1,4],[2,0,2,4]]}
["Common Windshields"]
["If any of your plant share a common windshield, please give us the details.  Using the columns below, provide the names of the plant, as given in the Plant Details tab, which share a common windshield. Use one of the columns for each common windshield you have."]
["For example if you have 4 plant and 2 common windshields, with each windshield hosting 2 flues, then you should complete the form as follows;  "]
["Common Windshield 1","Common Windshield 2","Common Windshield 3","Common Windshield 4","Common Windshield 5"]
["MCP1","MCP3"]
["MCP2","MCP4"]
[]
["Enter details of your windshield groupings below"]
["Common Windshield 1","Common Windshield 2","Common Windshield 3","Common Windshield 4","Common Windshield 5"]
[]
[]
[]
[]
[]
[]
[]
[]
[]
[]
[]
["Back to Plant Details"]
[]
["Back to Application Tab"]

{"sheet":"ReSP","index":10,"n_rows":156,"n_cols":35,"rows_kept":156,"cut":false,"hidden":true,"merged":[[12,8,12,34]]}
["Named Range","ResP Ingestion ID Code","Type","Table","Field","Value",null,null,"Plant Name","Serial No. of Plant\n(If already purchased)","Plant Manufacturer","Model Name","Easting","Northing","Lat","Long","Approx Commission Date","Size (MWth)","Technology","Fuel/Main Fuel","Stack Height (metres)","Does the flue share a common windshield?","Annual Hours","Limited Operating Hours","Annual Load (%)","In AQMA","AQMA Local Authority","Closest Human Receptor (metres)","Human Receptor Details","Closest Ecological Receptor (metres)","Ecological Receptor Details","Background NO2 (μg/m3)","Sec Abatement","Abatement Type","Plant Status"]
["AnnualHours","TBC","Property",null,null,"T",null,"PlantListStart"]
["AnnualLoad","ditto","Property",null,null,"H"]
["AppContact_email",null,"Entity","Contact",null,{"$f":"AppContact_email","v":"stephenweston@olleco.co.uk"}]
["AppContact_FName",null,"Entity","Contact",null,"S"]
["AppContact_LastName",null,"Entity","Contact",null,"E"]
["AppContact_Locality",null,"Entity","ContactAddress","Locality"]
["AppContact_Postcode",null,"Entity","ContactAddress","Postcode","W"]
["AppContact_Premise",null,"Entity","ContactAddress","Premise","I"]
["AppContact_Street",null,"Entity","ContactAddress","Street","L"]
["AppContact_Tel",null,"Entity","Contact",null,"L"]
["AppContact_Town",null,"Entity","ContactAddress","Town",null,null,null,"Activity Name","Property","Property","Property","Release Point","Release Point","Release Point","Release Point","Property","Property","Property","Property","Release Point","Property","Property","Property","Property","Property","Property","Property","Property","Property","Property","Property","Property","Property","Property"]
["AppOperator",null,"Entity","This is part of declaration",null,"B",null,null,"To be completed: Not had time to do the auto population of this Sam - but this is how it will broadly look"]
["AppType",null,"Entity","Account/Contact","Organisaiton Type","E"]
["AQMA",null,"Property"]
["AQMADetails",null,"Property",null,null,"A"]
["BackgroundNO2",null,"Property",null,null,"U"]
["Bankrupt",null,"Property",null,null,"T"]
["bankruptDocRef",null,"Property",null,null,"O"]
["BillAdd_Locality",null,"Entity","(Billing) Address"]
["BillAdd_Postcode",null,"Entity","(Billing) Address",null,"I"]
["BillAdd_Premise",null,"Entity","(Billing) Address",null,"N"]
["BillAdd_Street",null,"Entity","(Billing) Address",null,"S"]
["BillAdd_Town",null,"Entity","(Billing) Address",null,"E"]
["BillContact_email",null,"Entity","(Billing) Contact",null,"R"]
["BillContact_FName",null,"Entity","(Billing) Contact",null,"T"]
["BillContact_LastName",null,"Entity","(Billing) Contact",null,"E"]
["BillContact_Locality",null,"Entity","(Billing) ContactAddress",null,"D"]
["BillContact_Postcode",null,"Entity","(Billing) ContactAddress"]
["BillContact_Premise",null,"Entity","(Billing) ContactAddress",null,"F"]
["BillContact_Street",null,"Entity","(Billing) ContactAddress",null,"R"]
["BillContact_Tel",null,"Entity","(Billing) Contact",null,"O"]
["BillContact_Town",null,"Entity","(Billing) ContactAddress",null,"M"]
["BusAdd_Locality",null,"Entity","Address"]
["BusAdd_Postcode",null,"Entity","Address",null,"V"]
["BusAdd_Premise",null,"Entity","Address",null,"A"]
["BusAdd_Street",null,"Entity","Address",null,"L"]
["BusAdd_Town",null,"Entity","Address",null,"U"]
["CardHolderEmail",null,null,"(Billing) Contact",null,"E"]
["CardHolderEmailold",null,null,null,null,"S"]
["CardHolderName",null,null,"(Billing) Contact"]
["CardHolderTel",null,null,"(Billing) Contact",null,"E"]
["CardHolderTitle",null,null,"(Billing) Contact",null,"N"]
["CCNS",null,"Entity","Commercially Confidential or Nat Security",null,"T"]
["ChargeComments",null,"Entity","Notes",null,"E"]
["ChargeDue",null,"Entity","Charges",null,{"$f":"ChargeDue","v":446}]
["ChargePaid",null,"Entity","Charges",null,"E"]
["CompanyName",null,"Entity","Account",null,"D"]
["CompanyNum",null,"Entity","Account"]
["copyAppContact",null,null,"NA",null,"O"]
["CopyApplicationContact",null,null,"NA",null,"N"]
["copyBillContact",null,null,"NA"]
["CopyBillingAddress",null,null,"NA",null,"T"]
["CopyBillingContact",null,null,"NA",null,"H"]
["CopyBilllingAddress",null,null,"NA",null,"E"]
["CopyBusAddress",null,null,"NA"]
["copyOpContact",null,null,"NA",null,"A"]
["copySubsistenceBillingAddress",null,null,"NA",null,"P"]
["CoRegDate",null,"Entity","Account",null,"P"]
["DeclareMeetsRules",null,"Property",null,null,"L"]
["DirectorDetails",null,null,null,null,"I"]
["EcoReceptor",null,"Property",null,null,"C"]
["EcoReceptorDetails",null,"Property",null,null,"A"]
["EEDirActivity",null,null,null,null,"T"]
["EMSType",null,"Property",null,null,"I"]
["EvidenceAtt",null,"Property",null,null,"O"]
["existingPermitRef",null,"Entity","Application",null,"N"]
["Fee",null,"Entity","Charges"]
["Fuel",null,"Property"]
["HasEMS",null,"Property"]
["hasExistingPermit",null,"Property"]
["hasSharedStack",null,"Property"]
["HumanReceptor",null,"Property"]
["HumanReceptorDetails",null,"Property"]
["IndDoB",null,"Entity","Contact"]
["IndFirstName",null,"Entity","Contact"]
["IndSurname",null,"Entity","Contact"]
["IndTitle",null,"Entity","Contact"]
["infoIsAccurate",null,"Property"]
["isAuthorisedPerson",null,"Property"]
["isSG",null,"Entity","Activity"]
["legalContactEmail",null,"Entity","Contact"]
["LegalContactName",null,"Entity","Contact"]
["LimitedOpHours",null,"Property"]
["LocalAuth",null,"Entity","Location"]
["MacrosON",null,null,"NA"]
["mainAdd_Locality",null,"Entity","(Registered) Address"]
["mainAdd_Postcode",null,"Entity","(Registered) Address"]
["MainAdd_premise",null,"Entity","(Registered) Address"]
["mainAdd_Street",null,"Entity","(Registered) Address"]
["mainAdd_Town",null,"Entity","(Registered) Address"]
["MobilePlant",null,"Entity","Activity"]
["ModelName",null,"Property"]
["MultiPlant",null,"Property"]
["NaceCode",null,"Entity","Location"]
["notes",null,"Entity","Notes"]
["OnBehalfOf",null,null,"Part of Declaration"]
["OpContact_email",null,"Entity","Contact"]
["OpContact_FName",null,"Entity","Contact"]
["OpContact_LastName",null,"Entity","Contact Address"]
["OpContact_Locality",null,"Entity","Contact Address"]
["OpContact_Postcode",null,"Entity","Contact Address"]
["OpContact_Premise",null,"Entity","Contact Address"]
["OpContact_Street",null,"Entity","Contact Address"]
["OpContact_Tel",null,"Entity","Contact"]
["OpContact_Town",null,"Entity","Contact Address"]
["OperatorIsHolder",null,null,"Part of Declaration"]
["OrgName",null,"Entity","Account"]
["otherFuel",null,"Property"]
["PaidDate",null,"Entity","Charges"]
["PaymentComments",null,"Entity","Charges"]
["PaymentMethod",null,"Entity","Charges"]
["PaymentRef",null,"Entity","Charges"]
["Plant_Easting",null,"Entity","Activity Location"]
["Plant_Lat",null,"Entity","Activity Location"]
["Plant_Long",null,"Entity","Activity Location"]
["Plant_Northing",null,"Entity","Activity Location"]
["PlantAge",null,"Property"]
["PlantCount",null,null,"Calculated  (NA)"]
["PlantMaker",null,"Property"]
["PlantnameSing",null,"Entity","Activity"]
["PlantStatus",null,"Property"]
["PosInOrg",null,"Entity","Contact"]
["Pre21Dec",null,"Property"]
["propBiogas",null,"Property"]
["propGasOil",null,"Property"]
["propNaturalGas",null,"Property"]
["PropOther",null,"Property"]
["PubBodyName",null,"Entity","Account"]
["RelevantConvictions",null,"Property"]
["Ruleset",null,"Entity","Activity Standard Rule"]
["SecondaryAbatement",null,"Property"]
["SerialNo",null,"Property"]
["SignedBy",null,null,"Part of Declaration"]
["SignedDate",null,null,"Part of Declaration"]
["SiteAddr_Locality",null,"Entity","Site Location"]
["SiteAddr_Postcode",null,"Entity","Site Location"]
["SiteAddr_Premise",null,"Entity","Site Location"]
["SiteAddr_Street",null,"Entity","Site Location"]
["SiteAddr_Town",null,"Entity","Site Location"]
["SiteName",null,"Entity","Site Location"]
["sitePlanAttached",null,"Property/Entity"]
["SizeMW",null,"Property"]
["SRPDesc",null,"Entity","Activity Standard Rule (lookup)"]
["StackHeight",null,"Entity","Release Point"]
["SubFees",null,"Entity","Charges"]
["SubsAdd_Locality",null,"Entity","Billing Address "]
["SubsAdd_Postcode",null,"Entity","Billing Address "]
["SubsAdd_Premise",null,"Entity","Billing Address "]
["SubsAdd_Street",null,"Entity","Billing Address "]
["SubsAdd_Town",null,"Entity","Billing Address "]
["Technology",null,"Property"]
["TypeofOrg",null,"Entity","Account"]
["TypeofPubBody",null,null,"System (NA)"]
["Verified",null,null,"System (NA)"]
["VersionDat"]

{"sheet":"Resp 1","index":11,"n_rows":114,"n_cols":35,"rows_kept":114,"cut":false,"hidden":true,"merged":[]}
["Named Range","Value","Friendly Name","Target Entity",null,"Plant Name","_1136","_1333","_1234","Easting","Northing","Lat","Long","_1224","_1137","_1118","_1125","_1152","_1230","_1138","_1140","_1027","_1062","_1328","_1021","_1121","_1117","_1124","_2005","_1016","_2006","_1015","_1150","_1040","_1326"]
["AppType",{"$f":"AppType","v":"Registered Company"},"Organisation Type","Organisation Type",null,{"$f":"'Plant Details'!B4","v":"MCP 1"},{"$f":"'Plant Details'!C4","v":"*not purchased yet"},{"$f":"'Plant Details'!D4","v":"Yorkshire Man"},{"$f":"'Plant Details'!E4","v":"YSX4500-37"},{"$f":"'Plant Details'!F4","v":0},{"$f":"'Plant Details'!G4","v":0},{"$f":"'Plant Details'!H4","v":51.519827999999997},{"$f":"'Plant Details'!I4","v":0.14096886},{"$f":"'Plant Details'!J4","v":"2024-08-01"},{"$f":"'Plant Details'!K4","v":3.2},{"$f":"'Plant Details'!L4","v":"Boiler "},{"$f":"'Plant Details'!M4","v":"Natural Gas"},{"$f":"'Plant Details'!#REF!","v":{"$error":"#REF!"}},{"$f":"'Plant Details'!O5","v":0},{"$f":"'Plant Details'!P4","v":0},{"$f":"'Plant Details'!S4","v":3},{"$f":"'Plant Details'!T4","v":"No"},{"$f":"'Plant Details'!U4","v":5000},{"$f":"'Plant Details'!V4","v":"Yes"},{"$f":"'Plant Details'!W4 *100","v":50},{"$f":"'Plant Details'!X4","v":"No"},{"$f":"'Plant Details'!Y4","v":"Barking & Dagenham Council"},{"$f":"'Plant Details'!Z4","v":0},{"$f":"'Plant Details'!AA4","v":0},{"$f":"'Plant Details'!AB4","v":2700},{"$f":"'Plant Details'!AC4","v":"Inner Thames Marshes"},{"$f":"'Plant Details'!AD4","v":29},{"$f":"'Plant Details'!AE4","v":"No"},{"$f":"'Plant Details'!AF4","v":0},{"$f":"'Plant Details'!AG4","v":"NA"}]
["CompanyName",{"$f":"CompanyName","v":"Olleco"},"Name if a Company","Company Name",null,{"$f":"'Plant Details'!B5","v":0},{"$f":"'Plant Details'!C5","v":0},{"$f":"'Plant Details'!D5","v":0},{"$f":"'Plant Details'!E5","v":0},{"$f":"'Plant Details'!F5","v":0},{"$f":"'Plant Details'!G5","v":0},{"$f":"'Plant Details'!H5","v":0},{"$f":"'Plant Details'!I5","v":0},{"$f":"'Plant Details'!J5","v":"00:00:00"},{"$f":"'Plant Details'!K5","v":0},{"$f":"'Plant Details'!L5","v":0},{"$f":"'Plant Details'!M5","v":0},{"$f":"'Plant Details'!N4","v":"Other Gaseous Fuel"},{"$f":"'Plant Details'!#REF!","v":{"$error":"#REF!"}},{"$f":"'Plant Details'!P5","v":0},{"$f":"'Plant Details'!S5","v":0},{"$f":"'Plant Details'!T5","v":0},{"$f":"'Plant Details'!U5","v":0},{"$f":"'Plant Details'!V5","v":0},{"$f":"'Plant Details'!W5 *100","v":0},{"$f":"'Plant Details'!X5","v":0},{"$f":"'Plant Details'!Y5","v":0},{"$f":"'Plant Details'!Z5","v":0},{"$f":"'Plant Details'!AA5","v":0},{"$f":"'Plant Details'!AB5","v":0},{"$f":"'Plant Details'!AC5","v":0},{"$f":"'Plant Details'!AD5","v":0},{"$f":"'Plant Details'!AE5","v":0},{"$f":"'Plant Details'!AF5","v":0},{"$f":"'Plant Details'!AG5","v":0}]
["CompanyNum",{"$f":"CompanyNum","v":"05878742"},"Companies House Number","Company Number",null,{"$f":"'Plant Details'!B6","v":0},{"$f":"'Plant Details'!C6","v":0},{"$f":"'Plant Details'!D6","v":0},{"$f":"'Plant Details'!E6","v":0},{"$f":"'Plant Details'!F6","v":0},{"$f":"'Plant Details'!G6","v":0},{"$f":"'Plant Details'!H6","v":0},{"$f":"'Plant Details'!I6","v":0},{"$f":"'Plant Details'!J6","v":"00:00:00"},{"$f":"'Plant Details'!K6","v":0},{"$f":"'Plant Details'!L6","v":0},{"$f":"'Plant Details'!M6","v":0},{"$f":"'Plant Details'!N6","v":0},{"$f":"'Plant Details'!O6","v":0},{"$f":"'Plant Details'!P6","v":0},{"$f":"'Plant Details'!S6","v":0},{"$f":"'Plant Details'!T6","v":0},{"$f":"'Plant Details'!U6","v":0},{"$f":"'Plant Details'!V6","v":0},{"$f":"'Plant Details'!W6 *100","v":0},{"$f":"'Plant Details'!X6","v":0},{"$f":"'Plant Details'!Y6","v":0},{"$f":"'Plant Details'!Z6","v":0},{"$f":"'Plant Details'!AA6","v":0},{"$f":"'Plant Details'!AB6","v":0},{"$f":"'Plant Details'!AC6","v":0},{"$f":"'Plant Details'!AD6","v":0},{"$f":"'Plant Details'!AE6","v":0},{"$f":"'Plant Details'!AF6","v":0},{"$f":"'Plant Details'!AG6","v":0}]
["CoRegDate",{"$f":"CoRegDate","v":"2006-07-17"},"Registration Date",null,null,{"$f":"'Plant Details'!B7","v":0},{"$f":"'Plant Details'!C7","v":0},{"$f":"'Plant Details'!D7","v":0},{"$f":"'Plant Details'!E7","v":0},{"$f":"'Plant Details'!F7","v":0},{"$f":"'Plant Details'!G7","v":0},{"$f":"'Plant Details'!H7","v":0},{"$f":"'Plant Details'!I7","v":0},{"$f":"'Plant Details'!J7","v":"00:00:00"},{"$f":"'Plant Details'!K7","v":0},{"$f":"'Plant Details'!L7","v":0},{"$f":"'Plant Details'!M7","v":0},{"$f":"'Plant Details'!N7","v":0},{"$f":"'Plant Details'!O7","v":0},{"$f":"'Plant Details'!P7","v":0},{"$f":"'Plant Details'!S7","v":0},{"$f":"'Plant Details'!T7","v":0},{"$f":"'Plant Details'!U7","v":0},{"$f":"'Plant Details'!V7","v":0},{"$f":"'Plant Details'!W7 *100","v":0},{"$f":"'Plant Details'!X7","v":0},{"$f":"'Plant Details'!Y7","v":0},{"$f":"'Plant Details'!Z7","v":0},{"$f":"'Plant Details'!AA7","v":0},{"$f":"'Plant Details'!AB7","v":0},{"$f":"'Plant Details'!AC7","v":0},{"$f":"'Plant Details'!AD7","v":0},{"$f":"'Plant Details'!AE7","v":0},{"$f":"'Plant Details'!AF7","v":0},{"$f":"'Plant Details'!AG7","v":0}]
["OrgName",{"$f":"OrgName","v":0},"Name if a Group of Individuals","Group of Individuals Name",null,{"$f":"'Plant Details'!B8","v":0},{"$f":"'Plant Details'!C8","v":0},{"$f":"'Plant Details'!D8","v":0},{"$f":"'Plant Details'!E8","v":0},{"$f":"'Plant Details'!F8","v":0},{"$f":"'Plant Details'!G8","v":0},{"$f":"'Plant Details'!H8","v":0},{"$f":"'Plant Details'!I8","v":0},{"$f":"'Plant Details'!J8","v":"00:00:00"},{"$f":"'Plant Details'!K8","v":0},{"$f":"'Plant Details'!L8","v":0},{"$f":"'Plant Details'!M8","v":0},{"$f":"'Plant Details'!N8","v":0},{"$f":"'Plant Details'!O8","v":0},{"$f":"'Plant Details'!P8","v":0},{"$f":"'Plant Details'!S8","v":0},{"$f":"'Plant Details'!T8","v":0},{"$f":"'Plant Details'!U8","v":0},{"$f":"'Plant Details'!V8","v":0},{"$f":"'Plant Details'!W8 *100","v":0},{"$f":"'Plant Details'!X8","v":0},{"$f":"'Plant Details'!Y8","v":0},{"$f":"'Plant Details'!Z8","v":0},{"$f":"'Plant Details'!AA8","v":0},{"$f":"'Plant Details'!AB8","v":0},{"$f":"'Plant Details'!AC8","v":0},{"$f":"'Plant Details'!AD8","v":0},{"$f":"'Plant Details'!AE8","v":0},{"$f":"'Plant Details'!AF8","v":0},{"$f":"'Plant Details'!AG8","v":0}]
["TypeofOrg",{"$f":"TypeofOrg","v":0},"Type of Group of Individuals","Group of Ind Type",null,{"$f":"'Plant Details'!B9","v":0},{"$f":"'Plant Details'!C9","v":0},{"$f":"'Plant Details'!D9","v":0},{"$f":"'Plant Details'!E9","v":0},{"$f":"'Plant Details'!F9","v":0},{"$f":"'Plant Details'!G9","v":0},{"$f":"'Plant Details'!H9","v":0},{"$f":"'Plant Details'!I9","v":0},{"$f":"'Plant Details'!J9","v":"00:00:00"},{"$f":"'Plant Details'!K9","v":0},{"$f":"'Plant Details'!L9","v":0},{"$f":"'Plant Details'!M9","v":0},{"$f":"'Plant Details'!N9","v":0},{"$f":"'Plant Details'!O9","v":0},{"$f":"'Plant Details'!P9","v":0},{"$f":"'Plant Details'!S9","v":0},{"$f":"'Plant Details'!T9","v":0},{"$f":"'Plant Details'!U9","v":0},{"$f":"'Plant Details'!V9","v":0},{"$f":"'Plant Details'!W9 *100","v":0},{"$f":"'Plant Details'!X9","v":0},{"$f":"'Plant Details'!Y9","v":0},{"$f":"'Plant Details'!Z9","v":0},{"$f":"'Plant Details'!AA9","v":0},{"$f":"'Plant Details'!AB9","v":0},{"$f":"'Plant Details'!AC9","v":0},{"$f":"'Plant Details'!AD9","v":0},{"$f":"'Plant Details'!AE9","v":0},{"$f":"'Plant Details'!AF9","v":0},{"$f":"'Plant Details'!AG9","v":0}]
["PubBodyName",{"$f":"PubBodyName","v":0},"Name if a Public Body","Public Body name",null,{"$f":"'Plant Details'!B10","v":0},{"$f":"'Plant Details'!C10","v":0},{"$f":"'Plant Details'!D10","v":0},{"$f":"'Plant Details'!E10","v":0},{"$f":"'Plant Details'!F10","v":0},{"$f":"'Plant Details'!G10","v":0},{"$f":"'Plant Details'!H10","v":0},{"$f":"'Plant Details'!I10","v":0},{"$f":"'Plant Details'!J10","v":"00:00:00"},{"$f":"'Plant Details'!K10","v":0},{"$f":"'Plant Details'!L10","v":0},{"$f":"'Plant Details'!M10","v":0},{"$f":"'Plant Details'!N10","v":0},{"$f":"'Plant Details'!O10","v":0},{"$f":"'Plant Details'!P10","v":0},{"$f":"'Plant Details'!S10","v":0},{"$f":"'Plant Details'!T10","v":0},{"$f":"'Plant Details'!U10","v":0},{"$f":"'Plant Details'!V10","v":0},{"$f":"'Plant Details'!W10 *100","v":0},{"$f":"'Plant Details'!X10","v":0},{"$f":"'Plant Details'!Y10","v":0},{"$f":"'Plant Details'!Z10","v":0},{"$f":"'Plant Details'!AA10","v":0},{"$f":"'Plant Details'!AB10","v":0},{"$f":"'Plant Details'!AC10","v":0},{"$f":"'Plant Details'!AD10","v":0},{"$f":"'Plant Details'!AE10","v":0},{"$f":"'Plant Details'!AF10","v":0},{"$f":"'Plant Details'!AG10","v":0}]
["TypeofPubBody",{"$f":"TypeofPubBody","v":0},"Type of Public Body","Public Body Type",null,{"$f":"'Plant Details'!B11","v":0},{"$f":"'Plant Details'!C11","v":0},{"$f":"'Plant Details'!D11","v":0},{"$f":"'Plant Details'!E11","v":0},{"$f":"'Plant Details'!F11","v":0},{"$f":"'Plant Details'!G11","v":0},{"$f":"'Plant Details'!H11","v":0},{"$f":"'Plant Details'!I11","v":0},{"$f":"'Plant Details'!J11","v":"00:00:00"},{"$f":"'Plant Details'!K11","v":0},{"$f":"'Plant Details'!L11","v":0},{"$f":"'Plant Details'!M11","v":0},{"$f":"'Plant Details'!N11","v":0},{"$f":"'Plant Details'!O11","v":0},{"$f":"'Plant Details'!P11","v":0},{"$f":"'Plant Details'!S11","v":0},{"$f":"'Plant Details'!T11","v":0},{"$f":"'Plant Details'!U11","v":0},{"$f":"'Plant Details'!V11","v":0},{"$f":"'Plant Details'!W11 *100","v":0},{"$f":"'Plant Details'!X11","v":0},{"$f":"'Plant Details'!Y11","v":0},{"$f":"'Plant Details'!Z11","v":0},{"$f":"'Plant Details'!AA11","v":0},{"$f":"'Plant Details'!AB11","v":0},{"$f":"'Plant Details'!AC11","v":0},{"$f":"'Plant Details'!AD11","v":0},{"$f":"'Plant Details'!AE11","v":0},{"$f":"'Plant Details'!AF11","v":0},{"$f":"'Plant Details'!AG11","v":0}]
["IndTitle",null,"Title if operator is an Individual","Individual",null,{"$f":"'Plant Details'!B12","v":0},{"$f":"'Plant Details'!C12","v":0},{"$f":"'Plant Details'!D12","v":0},{"$f":"'Plant Details'!E12","v":0},{"$f":"'Plant Details'!F12","v":0},{"$f":"'Plant Details'!G12","v":0},{"$f":"'Plant Details'!H12","v":0},{"$f":"'Plant Details'!I12","v":0},{"$f":"'Plant Details'!J12","v":"00:00:00"},{"$f":"'Plant Details'!K12","v":0},{"$f":"'Plant Details'!L12","v":0},{"$f":"'Plant Details'!M12","v":0},{"$f":"'Plant Details'!N12","v":0},{"$f":"'Plant Details'!O12","v":0},{"$f":"'Plant Details'!P12","v":0},{"$f":"'Plant Details'!S12","v":0},{"$f":"'Plant Details'!T12","v":0},{"$f":"'Plant Details'!U12","v":0},{"$f":"'Plant Details'!V12","v":0},{"$f":"'Plant Details'!W12 *100","v":0},{"$f":"'Plant Details'!X12","v":0},{"$f":"'Plant Details'!Y12","v":0},{"$f":"'Plant Details'!Z12","v":0},{"$f":"'Plant Details'!AA12","v":0},{"$f":"'Plant Details'!AB12","v":0},{"$f":"'Plant Details'!AC12","v":0},{"$f":"'Plant Details'!AD12","v":0},{"$f":"'Plant Details'!AE12","v":0},{"$f":"'Plant Details'!AF12","v":0},{"$f":"'Plant Details'!AG12","v":0}]
["IndFirstName",null,"First Name if an Individual","Individual",null,{"$f":"'Plant Details'!B13","v":0},{"$f":"'Plant Details'!C13","v":0},{"$f":"'Plant Details'!D13","v":0},{"$f":"'Plant Details'!E13","v":0},{"$f":"'Plant Details'!F13","v":0},{"$f":"'Plant Details'!G13","v":0},{"$f":"'Plant Details'!H13","v":0},{"$f":"'Plant Details'!I13","v":0},{"$f":"'Plant Details'!J13","v":"00:00:00"},{"$f":"'Plant Details'!K13","v":0},{"$f":"'Plant Details'!L13","v":0},{"$f":"'Plant Details'!M13","v":0},{"$f":"'Plant Details'!N13","v":0},{"$f":"'Plant Details'!O13","v":0},{"$f":"'Plant Details'!P13","v":0},{"$f":"'Plant Details'!S13","v":0},{"$f":"'Plant Details'!T13","v":0},{"$f":"'Plant Details'!U13","v":0},{"$f":"'Plant Details'!V13","v":0},{"$f":"'Plant Details'!W13 *100","v":0},{"$f":"'Plant Details'!X13","v":0},{"$f":"'Plant Details'!Y13","v":0},{"$f":"'Plant Details'!Z13","v":0},{"$f":"'Plant Details'!AA13","v":0},{"$f":"'Plant Details'!AB13","v":0},{"$f":"'Plant Details'!AC13","v":0},{"$f":"'Plant Details'!AD13","v":0},{"$f":"'Plant Details'!AE13","v":0},{"$f":"'Plant Details'!AF13","v":0},{"$f":"'Plant Details'!AG13","v":0}]
["IndSurname",null,"Last Name if an Individual","Individual",null,{"$f":"'Plant Details'!B14","v":0},{"$f":"'Plant Details'!C14","v":0},{"$f":"'Plant Details'!D14","v":0},{"$f":"'Plant Details'!E14","v":0},{"$f":"'Plant Details'!F14","v":0},{"$f":"'Plant Details'!G14","v":0},{"$f":"'Plant Details'!H14","v":0},{"$f":"'Plant Details'!I14","v":0},{"$f":"'Plant Details'!J14","v":"00:00:00"},{"$f":"'Plant Details'!K14","v":0},{"$f":"'Plant Details'!L14","v":0},{"$f":"'Plant Details'!M14","v":0},{"$f":"'Plant Details'!N14","v":0},{"$f":"'Plant Details'!O14","v":0},{"$f":"'Plant Details'!P14","v":0},{"$f":"'Plant Details'!S14","v":0},{"$f":"'Plant Details'!T14","v":0},{"$f":"'Plant Details'!U14","v":0},{"$f":"'Plant Details'!V14","v":0},{"$f":"'Plant Details'!W14 *100","v":0},{"$f":"'Plant Details'!X14","v":0},{"$f":"'Plant Details'!Y14","v":0},{"$f":"'Plant Details'!Z14","v":0},{"$f":"'Plant Details'!AA14","v":0},{"$f":"'Plant Details'!AB14","v":0},{"$f":"'Plant Details'!AC14","v":0},{"$f":"'Plant Details'!AD14","v":0},{"$f":"'Plant Details'!AE14","v":0},{"$f":"'Plant Details'!AF14","v":0},{"$f":"'Plant Details'!AG14","v":0}]
["IndDoB",null,"Date of Birth if an Individual","Individual",null,{"$f":"'Plant Details'!B15","v":0},{"$f":"'Plant Details'!C15","v":0},{"$f":"'Plant Details'!D15","v":0},{"$f":"'Plant Details'!E15","v":0},{"$f":"'Plant Details'!F15","v":0},{"$f":"'Plant Details'!G15","v":0},{"$f":"'Plant Details'!H15","v":0},{"$f":"'Plant Details'!I15","v":0},{"$f":"'Plant Details'!J15","v":"00:00:00"},{"$f":"'Plant Details'!K15","v":0},{"$f":"'Plant Details'!L15","v":0},{"$f":"'Plant Details'!M15","v":0},{"$f":"'Plant Details'!N15","v":0},{"$f":"'Plant Details'!O15","v":0},{"$f":"'Plant Details'!P15","v":0},{"$f":"'Plant Details'!S15","v":0},{"$f":"'Plant Details'!T15","v":0},{"$f":"'Plant Details'!U15","v":0},{"$f":"'Plant Details'!V15","v":0},{"$f":"'Plant Details'!W15 *100","v":0},{"$f":"'Plant Details'!X15","v":0},{"$f":"'Plant Details'!Y15","v":0},{"$f":"'Plant Details'!Z15","v":0},{"$f":"'Plant Details'!AA15","v":0},{"$f":"'Plant Details'!AB15","v":0},{"$f":"'Plant Details'!AC15","v":0},{"$f":"'Plant Details'!AD15","v":0},{"$f":"'Plant Details'!AE15","v":0},{"$f":"'Plant Details'!AF15","v":0},{"$f":"'Plant Details'!AG15","v":0}]
[null,null,null,null,null,{"$f":"'Plant Details'!B16","v":0},{"$f":"'Plant Details'!C16","v":0},{"$f":"'Plant Details'!D16","v":0},{"$f":"'Plant Details'!E16","v":0},{"$f":"'Plant Details'!F16","v":0},{"$f":"'Plant Details'!G16","v":0},{"$f":"'Plant Details'!H16","v":0},{"$f":"'Plant Details'!I16","v":0},{"$f":"'Plant Details'!J16","v":"00:00:00"},{"$f":"'Plant Details'!K16","v":0},{"$f":"'Plant Details'!L16","v":0},{"$f":"'Plant Details'!M16","v":0},{"$f":"'Plant Details'!N16","v":0},{"$f":"'Plant Details'!O16","v":0},{"$f":"'Plant Details'!P16","v":0},{"$f":"'Plant Details'!S16","v":0},{"$f":"'Plant Details'!T16","v":0},{"$f":"'Plant Details'!U16","v":0},{"$f":"'Plant Details'!V16","v":0},{"$f":"'Plant Details'!W16 *100","v":0},{"$f":"'Plant Details'!X16","v":0},{"$f":"'Plant Details'!Y16","v":0},{"$f":"'Plant Details'!Z16","v":0},{"$f":"'Plant Details'!AA16","v":0},{"$f":"'Plant Details'!AB16","v":0},{"$f":"'Plant Details'!AC16","v":0},{"$f":"'Plant Details'!AD16","v":0},{"$f":"'Plant Details'!AE16","v":0},{"$f":"'Plant Details'!AF16","v":0},{"$f":"'Plant Details'!AG16","v":0}]
["Named Range","Value","Friendly Name","Target Entity",null,{"$f":"'Plant Details'!B17","v":0},{"$f":"'Plant Details'!C17","v":0},{"$f":"'Plant Details'!D17","v":0},{"$f":"'Plant Details'!E17","v":0},{"$f":"'Plant Details'!F17","v":0},{"$f":"'Plant Details'!G17","v":0},{"$f":"'Plant Details'!H17","v":0},{"$f":"'Plant Details'!I17","v":0},{"$f":"'Plant Details'!J17","v":"00:00:00"},{"$f":"'Plant Details'!K17","v":0},{"$f":"'Plant Details'!L17","v":0},{"$f":"'Plant Details'!M17","v":0},{"$f":"'Plant Details'!N17","v":0},{"$f":"'Plant Details'!O17","v":0},{"$f":"'Plant Details'!P17","v":0},{"$f":"'Plant Details'!S17","v":0},{"$f":"'Plant Details'!T17","v":0},{"$f":"'Plant Details'!U17","v":0},{"$f":"'Plant Details'!V17","v":0},{"$f":"'Plant Details'!W17 *100","v":0},{"$f":"'Plant Details'!X17","v":0},{"$f":"'Plant Details'!Y17","v":0},{"$f":"'Plant Details'!Z17","v":0},{"$f":"'Plant Details'!AA17","v":0},{"$f":"'Plant Details'!AB17","v":0},{"$f":"'Plant Details'!AC17","v":0},{"$f":"'Plant Details'!AD17","v":0},{"$f":"'Plant Details'!AE17","v":0},{"$f":"'Plant Details'!AF17","v":0},{"$f":"'Plant Details'!AG17","v":0}]
["MainAdd_premise",{"$f":"MainAdd_premise","v":"Olleco"},"Registered Address - Premise","Registered Address",null,{"$f":"'Plant Details'!B18","v":0},{"$f":"'Plant Details'!C18","v":0},{"$f":"'Plant Details'!D18","v":0},{"$f":"'Plant Details'!E18","v":0},{"$f":"'Plant Details'!F18","v":0},{"$f":"'Plant Details'!G18","v":0},{"$f":"'Plant Details'!H18","v":0},{"$f":"'Plant Details'!I18","v":0},{"$f":"'Plant Details'!J18","v":"00:00:00"},{"$f":"'Plant Details'!K18","v":0},{"$f":"'Plant Details'!L18","v":0},{"$f":"'Plant Details'!M18","v":0},{"$f":"'Plant Details'!N18","v":0},{"$f":"'Plant Details'!O18","v":0},{"$f":"'Plant Details'!P18","v":0},{"$f":"'Plant Details'!S18","v":0},{"$f":"'Plant Details'!T18","v":0},{"$f":"'Plant Details'!U18","v":0},{"$f":"'Plant Details'!V18","v":0},{"$f":"'Plant Details'!W18 *100","v":0},{"$f":"'Plant Details'!X18","v":0},{"$f":"'Plant Details'!Y18","v":0},{"$f":"'Plant Details'!Z18","v":0},{"$f":"'Plant Details'!AA18","v":0},{"$f":"'Plant Details'!AB18","v":0},{"$f":"'Plant Details'!AC18","v":0},{"$f":"'Plant Details'!AD18","v":0},{"$f":"'Plant Details'!AE18","v":0},{"$f":"'Plant Details'!AF18","v":0},{"$f":"'Plant Details'!AG18","v":0}]
["mainAdd_Street",{"$f":"mainAdd_Street","v":"Battlefield Road"},"Registered Address - Street","Registered Address"]
["mainAdd_Locality",{"$f":"mainAdd_Locality","v":0},"Registered Address - Locality","Registered Address",null,"Name","Location","EntryOrRelease","DateFrom","NGR","DateTo","Long","Lat","Easting","Northing"]
["mainAdd_Town",{"$f":"mainAdd_Town","v":"Shrewsbury"},"Registered Address - Town","Registered Address",null,{"$f":"IF(F2<>0,F2,\"\")","v":"MCP 1"},{"$f":"IF(Table1[[#This Row],[Name]]<>\"\",SiteName,\"\")","v":"Olleco Dagenham"},{"$f":"IF(Table1[[#This Row],[Location]]<>\"\",\"Release\",\"\")","v":"Release"},{"$f":"IF(N2<>0,N2,\"\")","v":"2024-08-01"},null,{"$f":"IF(I19<>\"\",\"1/1/3000\",\"\")","v":"1/1/3000"},{"$f":"IF(M2<> 0, M2,\"\")","v":0.14096886},{"$f":"IF(L2<>0,L2,\"\")","v":51.519827999999997},{"$f":"IF(J2<>0,J2,\"\")","v":""},{"$f":"IF(K2<>0,K2,\"\")","v":""}]
["mainAdd_Postcode",{"$f":"mainAdd_Postcode","v":"SY1 4AH"},"Registered Address - Postcode","Registered Address",null,{"$f":"IF(F3<>0,F3,\"\")","v":""},{"$f":"IF(Table1[[#This Row],[Name]]<>\"\",SiteName,\"\")","v":""},{"$f":"IF(Table1[[#This Row],[Location]]<>\"\",\"Release\",\"\")","v":""},{"$f":"IF(N3<>0,N3,\"\")","v":""},null,{"$f":"IF(I20<>\"\",\"1/1/3000\",\"\")","v":""},{"$f":"IF(M3<> 0, M3,\"\")","v":""},{"$f":"IF(L3<>0,L3,\"\")","v":""},{"$f":"IF(J3<>0,J3,\"\")","v":""},{"$f":"IF(K3<>0,K3,\"\")","v":""}]
["BusAdd_Premise",{"$f":"BusAdd_Premise","v":"Olleco"},"Business Address - Premise",null,null,"",{"$f":"IF(Table1[[#This Row],[Name]]<>\"\",SiteName,\"\")","v":""},{"$f":"IF(Table1[[#This Row],[Location]]<>\"\",\"Release\",\"\")","v":""},"",null,"","","","",""]
["BusAdd_Street",{"$f":"BusAdd_Street","v":"Northampton Road"},"Business Address - Street",null,null,"",{"$f":"IF(Table1[[#This Row],[Name]]<>\"\",SiteName,\"\")","v":""},{"$f":"IF(Table1[[#This Row],[Location]]<>\"\",\"Release\",\"\")","v":""},"",null,"","","","",""]
["BusAdd_Locality",{"$f":"BusAdd_Locality","v":"Blisworth"},"Business Address - Locality",null,null,"",{"$f":"IF(Table1[[#This Row],[Name]]<>\"\",SiteName,\"\")","v":""},{"$f":"IF(Table1[[#This Row],[Location]]<>\"\",\"Release\",\"\")","v":""},"",null,"","","","",""]
["BusAdd_Town",{"$f":"BusAdd_Town","v":"Northampton"},"Business Address - Town",null,null,"",{"$f":"IF(Table1[[#This Row],[Name]]<>\"\",SiteName,\"\")","v":""},{"$f":"IF(Table1[[#This Row],[Location]]<>\"\",\"Release\",\"\")","v":""},"",null,"","","","",""]
["BusAdd_Postcode",{"$f":"BusAdd_Postcode","v":"NN7 3DR"},"Business Address - Postcode",null,null,"",{"$f":"IF(Table1[[#This Row],[Name]]<>\"\",SiteName,\"\")","v":""},{"$f":"IF(Table1[[#This Row],[Location]]<>\"\",\"Release\",\"\")","v":""},"",null,"","","","",""]
["BillAdd_Premise",{"$f":"BillAdd_Premise","v":"Olleco North West"},"Billing Address - Premise",null,null,"",{"$f":"IF(Table1[[#This Row],[Name]]<>\"\",SiteName,\"\")","v":""},{"$f":"IF(Table1[[#This Row],[Location]]<>\"\",\"Release\",\"\")","v":""},"",null,"","","","",""]
["BillAdd_Street",{"$f":"BillAdd_Street","v":"Birchall Street"},"Billing Address - Street",null,null,"",{"$f":"IF(Table1[[#This Row],[Name]]<>\"\",SiteName,\"\")","v":""},{"$f":"IF(Table1[[#This Row],[Location]]<>\"\",\"Release\",\"\")","v":""},"",null,"","","","",""]
["BillAdd_Locality",{"$f":"BillAdd_Locality","v":"Merseyside"},"Billing Address - Locality",null,null,"",{"$f":"IF(Table1[[#This Row],[Name]]<>\"\",SiteName,\"\")","v":""},{"$f":"IF(Table1[[#This Row],[Location]]<>\"\",\"Release\",\"\")","v":""},"",null,"","","","",""]
["BillAdd_Town",{"$f":"BillAdd_Town","v":"Liverpool"},"Billing Address - Town",null,null,"",{"$f":"IF(Table1[[#This Row],[Name]]<>\"\",SiteName,\"\")","v":""},{"$f":"IF(Table1[[#This Row],[Location]]<>\"\",\"Release\",\"\")","v":""},"",null,"","","","",""]
["BillAdd_Postcode",{"$f":"BillAdd_Postcode","v":"L20 8PD"},"Billing Address - Postcode",null,null,"",{"$f":"IF(Table1[[#This Row],[Name]]<>\"\",SiteName,\"\")","v":""},{"$f":"IF(Table1[[#This Row],[Location]]<>\"\",\"Release\",\"\")","v":""},"",null,"","","","",""]
["SubsAdd_Premise",{"$f":"SubsAdd_Premise","v":"Olleco North West"},"Subsistence Billing Address - Premise"]
["SubsAdd_Street",{"$f":"SubsAdd_Street","v":"Birchall Street"},"Subsistence Billing Address - Street"]
["SubsAdd_Locality",{"$f":"SubsAdd_Locality","v":"Merseyside"},"Subsistence Billing Address - Locality"]
["SubsAdd_Town",{"$f":"SubsAdd_Town","v":"Liverpool"},"Subsistence Billing Address - Town"]
["SubsAdd_Postcode",{"$f":"SubsAdd_Postcode","v":"L20 8PD"},"Subsistence Billing Address - Postcode"]
[]
["Named Range","Value","Friendly Name","Target Entity"]
["AppContact_FName",{"$f":"AppContact_FName","v":"Stephen"},"App Contact First Name","App Contact"]
["AppContact_LastName",{"$f":"AppContact_LastName","v":"Weston"},"App Contact Last Name","App Contact"]
["AppContact_email",{"$f":"AppContact_email","v":"stephenweston@olleco.co.uk"},"App Contact Email","App Contact"]
["AppContact_Tel",{"$f":"AppContact_Tel","v":"07967338361"},"App Contact Telephone","App Contact"]
["AppContact_Premise",{"$f":"AppContact_Premise","v":"Olleco North West"},"App Contact Premise","ContactAddress"]
["AppContact_Street",{"$f":"AppContact_Street","v":"Birchall Street"},"App Contact Street","ContactAddress"]
["AppContact_Locality",{"$f":"AppContact_Locality","v":"Merseyside"},"App Contact Locality","ContactAddress"]
["AppContact_Town",{"$f":"AppContact_Town","v":"Liverpool"},"App Contact Town","ContactAddress"]
["AppContact_Postcode",{"$f":"AppContact_Postcode","v":"L20 8PD"},"App Contact Postcode","ContactAddress"]
["BillContact_FName",{"$f":"BillContact_FName","v":"Convert Accounts"},"Billing Contact First Name","(Billing) Contact"]
["BillContact_LastName",{"$f":"BillContact_LastName","v":0},"Billing Contact Last Name","(Billing) Contact"]
["BillContact_email",{"$f":"BillContact_email","v":"convertaccounts@olleco.co.uk"},"Billing Contact Email","(Billing) Contact"]
["BillContact_Tel",{"$f":"BillContact_Tel","v":"0151 933 0453"},"Billing Contact Telephone","(Billing) Contact"]
["BillContact_Premise",{"$f":"BillContact_Premise","v":"Olleco North West"},"Billing Contact Premise","(Billing) ContactAddress"]
["BillContact_Street",{"$f":"BillContact_Street","v":"Birchall Street"},"Billing Contact Street","(Billing) ContactAddress"]
["BillContact_Locality",{"$f":"BillContact_Locality","v":"Merseyside"},"Billing Contact Locality","(Billing) ContactAddress"]
["BillContact_Town",{"$f":"BillContact_Town","v":"Liverpool"},"Billing Contact Town","(Billing) ContactAddress"]
["BillContact_Postcode",{"$f":"BillContact_Postcode","v":"L20 8PD"},"Billing Contact Postcode","(Billing) ContactAddress"]
["OpContact_FName",{"$f":"OpContact_FName","v":"Chris"},"Operational Contact First Name","Operational Contact"]
["OpContact_LastName",{"$f":"OpContact_LastName","v":"Barnes"},"Operational Contact Last Name","Operational Contact"]
["OpContact_email",{"$f":"OpContact_email","v":"chrisbarnes@anneliseco.co.uk"},"Operational Contact Email","Operational Contact"]
["OpContact_Tel",{"$f":"OpContact_Tel","v":"07815496196"},"Operational Contact Telephone","Operational Contact"]
["OpContact_Premise",{"$f":"OpContact_Premise","v":"Olleco North West"},"Operational Contact Premise","Contact Address"]
["OpContact_Street",{"$f":"OpContact_Street","v":"Birchall Street"},"Operational Contact Street","Contact Address"]
["OpContact_Locality",{"$f":"OpContact_Locality","v":"Merseyside"},"Operational Contact Locality","Contact Address"]
["OpContact_Town",{"$f":"OpContact_Town","v":"Liverpool"},"Operational Contact Town","Contact Address"]
["OpContact_Postcode",{"$f":"OpContact_Postcode","v":"L20 8PD"},"Operational Contact Postcode","Contact Address"]
["LegalContactName",{"$f":"LegalContactName","v":0},"Legal Contact Name","Legal Contact"]
["legalContactEmail",{"$f":"legalContactEmail","v":"stephenweston@olleco.co.uk"},"Legal Contact Email","Legal Contact"]
["PosInOrg",{"$f":"PosInOrg","v":"SHEQ & Business Improvement Director"},"Legal Contact Position in Organisation","Legal Contact"]
[]
["Named Range","Value","Friendly Name","Target Entity"]
["Ruleset",{"$f":"Ruleset","v":"SR2018 No 7"},"Standard Ruleset Name","Activity Standard Rule"]
["SRPDesc",{"$f":"VLOOKUP(B70,LkupLists!$D$2:$E$11,2,FALSE)","v":"New Medium Combustion Plant, low risk, stationary  from 1 to <20MW per plant, (<50MW total) in operation on/after 20/12/2018"},"Standard Ruleset Description","Activity Standard Rule (lookup)"]
["CCNS",{"$f":"CCNS","v":"No"},"Commercial in Confidence","Commercially Confidential"]
["NatSecure",{"$f":"NatSecure","v":"No"},"National Security","National Security"]
["MobilePlant",{"$f":"MobilePlant","v":"No"},"Is a Mobile Plant"]
["existingPermitRef",{"$f":"existingPermitRef","v":0},"Exisitng Permit Ref in case of a variation"]
["isSG",{"$f":"isSG","v":"No"},"Is a Specified Generator"]
["SiteName",{"$f":"SiteName","v":"Olleco Dagenham"}]
["SiteAddr_Premise",{"$f":"SiteAddr_Premise","v":"Olleco Dagenham"}]
["SiteAddr_Street",{"$f":"SiteAddr_Street","v":"Hindmans Way"},null,null,{"$f":"NatSecure","v":"No"}]
["SiteAddr_Locality",{"$f":"SiteAddr_Locality","v":0},null,"ChargeComments"]
["SiteAddr_Town",{"$f":"SiteAddr_Town","v":"Dagenham"},null,"ChargeDue"]
["SiteAddr_Postcode",{"$f":"SiteAddr_Postcode","v":"RM9 6LP"},null,"ChargePaid"]
["LocalAuth",{"$f":"LocalAuth","v":"London Borough of Barking & Dagenham"}]
["NaceCode",{"$f":"NaceCode","v":"E.38 - Waste collection, treatment and disposal activities; materials recovery"},"Nace Code for that overall location","Fee"]
["Plant_Easting",{"$f":"PlantLoc_Easting","v":0},"Site Location Easting"]
["Plant_Northing",{"$f":"PlantLoc_Northing","v":0},"Site Location Northing"]
["Plant_Lat",{"$f":"PlantLoc_Lat","v":51.519827999999997},"Site Location Latitude"]
["Plant_Long",{"$f":"PlantLoc_Long","v":0.14096886},"Site Location Longitude"]
[]
["Named Range","Value","Friendly Name","Target Entity"]
["Charge",{"$f":"ChargeDue","v":446},"Charge Due","Charges"]
["ChargePaid (BACS)",{"$f":"ChargePaid","v":"Yes"},"Already Paid"]
["PaymentMethod",{"$f":"PaymentMethod","v":"Electronic Transfer/Bacs"},"Method of Payment","Charges"]
["PaidDate",{"$f":"PaidDate","v":"2024-05-13"},"Date of Payment","Charges"]
["PaymentRef",{"$f":"PaymentRef","v":"MCPOL1727VO"},"Payment Ref Used","Charges"]
["PaymentComments",{"$f":"PaymentComments","v":0},"Payment Comments","Charges"]
[]
["Named Range","Value","Friendly Name","Target Entity"]
["infoIsAccurate",{"$f":"infoIsAccurate","v":"Yes"},"Declare that Information is accurate"]
["isAuthorisedPerson",{"$f":"isAuthorisedPerson","v":"Yes"},"Declare that they are authorised signatory"]
["EvidenceAtt",{"$f":"EvidenceAtt","v":0},"Declare that any evidence that limits will be met is attached"]
["AppOperator",{"$f":"AppOperator","v":"Yes"},"Declare that they are the Operator"]
["DeclaresMeetsRules",{"$f":"DeclareMeetsRules","v":"Yes"},"Declare that Standard rules will be met"]
["MacrosOn",{"$f":"MacrosON","v":"Yes"}]
["NeworAdd",{"$f":"NeworADD","v":"New"},"Macros have been switched on"]
[]
["Named Range","Value","Property ID","Desc"]
["Relevant Convictions",{"$f":"RelevantConvictions","v":"No"},1113,"Declared Relevant Convictions"]
["Bankrupt",{"$f":"Bankrupt","v":"No"},1161,"Declared Bankruptcy"]
["Bankruptcy Comments",{"$f":"bankruptDocRef","v":0},1063,"Bankruptcy Comments"]
["HasEMS",{"$f":"HasEMS","v":"Yes"},null,"Has an Environment Management System"]
["EMSType",{"$f":"EMSType","v":"ISO 14001 "},1127,"Type of Env Management System"]
["NeworAdd",{"$f":"NeworADD","v":"New"},null,"New Permit or add plant to exisiting"]
["AppFor",{"$f":"AppFor","v":"A new permit"}]

{"sheet":"DataList","index":12,"n_rows":156,"n_cols":2,"rows_kept":156,"cut":false,"hidden":true,"merged":[]}
["Field","Value"]
["AnnualHours"]
["AnnualLoad"]
["AppContact_email"]
["AppContact_FName"]
["AppContact_LastName"]
["AppContact_Locality"]
["AppContact_Postcode"]
["AppContact_Premise"]
["AppContact_Street"]
["AppContact_Tel"]
["AppContact_Town"]
["AppOperator"]
["AppType"]
["AQMA"]
["AQMADetails"]
["BackgroundNO2"]
["Bankrupt"]
["bankruptDocRef"]
["BillAdd_Locality"]
["BillAdd_Postcode"]
["BillAdd_Premise"]
["BillAdd_Street"]
["BillAdd_Town"]
["BillContact_email"]
["BillContact_FName"]
["BillContact_LastName"]
["BillContact_Locality"]
["BillContact_Postcode"]
["BillContact_Premise"]
["BillContact_Street"]
["BillContact_Tel"]
["BillContact_Town"]
["BusAdd_Locality"]
["BusAdd_Postcode"]
["BusAdd_Premise"]
["BusAdd_Street"]
["BusAdd_Town"]
["CardHolderEmail"]
["CardHolderEmailold"]
["CardHolderName"]
["CardHolderTel"]
["CardHolderTitle"]
["CCNS"]
["ChargeComments"]
["ChargeDue"]
["ChargePaid"]
["CompanyName"]
["CompanyNum"]
["copyAppContact"]
["CopyApplicationContact"]
["copyBillContact"]
["CopyBillingAddress"]
["CopyBillingContact"]
["CopyBilllingAddress"]
["CopyBusAddress"]
["copyOpContact"]
["copySubsistenceBillingAddress"]
["CoRegDate"]
["DeclareMeetsRules"]
["DirectorDetails"]
["EcoReceptor"]
["EcoReceptorDetails"]
["EEDirActivity"]
["EMSType"]
["EvidenceAtt"]
["existingPermitRef"]
["Fee"]
["Fuel"]
["HasEMS"]
["hasExistingPermit"]
["hasSharedStack"]
["HumanReceptor"]
["HumanReceptorDetails"]
["IndDoB"]
["IndFirstName"]
["IndSurname"]
["IndTitle"]
["infoIsAccurate"]
["isAuthorisedPerson"]
["isSG"]
["legalContactEmail"]
["LegalContactName"]
["LimitedOpHours"]
["LocalAuth"]
["MacrosON"]
["mainAdd_Locality"]
["mainAdd_Postcode"]
["MainAdd_premise"]
["mainAdd_Street"]
["mainAdd_Town"]
["MobilePlant"]
["ModelName"]
["MultiPlant"]
["NaceCode"]
["notes"]
["OnBehalfOf"]
["OpContact_email"]
["OpContact_FName"]
["OpContact_LastName"]
["OpContact_Locality"]
["OpContact_Postcode"]
["OpContact_Premise"]
["OpContact_Street"]
["OpContact_Tel"]
["OpContact_Town"]
["OperatorIsHolder"]
["OrgName"]
["otherFuel"]
["PaidDate"]
["PaymentComments"]
["PaymentMethod"]
["PaymentRef"]
["Plant_Easting"]
["Plant_Lat"]
["Plant_Long"]
["Plant_Northing"]
["PlantAge"]
["PlantCount"]
["PlantMaker"]
["PlantnameSing"]
["PlantStatus"]
["PosInOrg"]
["Pre21Dec"]
["propBiogas"]
["propGasOil"]
["propNaturalGas"]
["PropOther"]
["PubBodyName"]
["RelevantConvictions"]
["Ruleset"]
["SecondaryAbatement"]
["SerialNo"]
["SignedBy"]
["SignedDate"]
["SiteAddr_Locality"]
["SiteAddr_Postcode"]
["SiteAddr_Premise"]
["SiteAddr_Street"]
["SiteAddr_Town"]
["SiteName"]
["sitePlanAttached"]
["SizeMW"]
["SRPDesc"," "]
["StackHeight"]
["SubFees"]
["SubsAdd_Locality"]
["SubsAdd_Postcode"]
["SubsAdd_Premise"]
["SubsAdd_Street"]
["SubsAdd_Town"]
["Technology"]
["TypeofOrg"]
["TypeofPubBody"]
["Verified","Yes"]
["VersionDat","Version 4"]